Workbook

Sheet Table 15-1
A1: Table 15-1. ESTIMATED 2025 CIVILIAN FEDERAL IT SPENDING AND PERCENTAGE BY AGENCY
A2: (in millions of dollars)
A3: Agency | B3: 2025 | C3: Percent of Total
A4: Department of Homeland Security | B4: 11,116 | C4: 14.8%
A5: Department of Health and Human Services | B5: 9,884 | C5: 13.2%
A6: Department of the Treasury | B6: 9,067 | C6: 12.1%
A7: Department of Veterans Affairs | B7: 8,833 | C7: 11.8%
A8: Department of Energy | B8: 5,511 | C8: 7.3%
A9: Department of Justice | B9: 4,446 | C9: 5.9%
A10: Department of Transportation | B10: 4,361 | C10: 5.8%
A11: Department of State | B11: 3,267 | C11: 4.3%
A12: Department of Agriculture | B12: 2,914 | C12: 3.9%
A13: Department of Commerce | B13: 2,893 | C13: 3.9%
A14: Social Security Administration | B14: 2,459 | C14: 3.3%
A15: National Aeronautics and Space Administration | B15: 2,171 | C15: 2.9%
A16: Department of the Interior | B16: 2,042 | C16: 2.7%
A17: Department of Education | B17: 1,690 | C17: 2.2%
A18: Department of Labor | B18: 953 | C18: 1.3%
A19: General Services Administration | B19: 888 | C19: 1.2%
A20: Department of Housing and Urban Development | B20: 539 | C20: 0.7%
A21: Environmental Protection Agency | B21: 439 | C21: 0.6%
A22: U.S. Agency for International Development | B22: 383 | C22: 0.5%
A23: Small Business Administration | B23: 328 | C23: 0.4%
A24: U.S. Army Corps of Engineers | B24: 252 | C24: 0.3%
A25: National Science Foundation | B25: 201 | C25: 0.3%
A26: Nuclear Regulatory Commission | B26: 186 | C26: 0.2%
A27: Office of Personnel Management | B27: 158 | C27: 0.2%
A28: National Archives and Records Administration | B28: 147 | C28: 0.2%
A29: Total | B29: 75,128 | C29: 100.0%
A30: This analysis excludes the Department of Defense.

Sheet Table 15-2
A1: Table 15-2. ESTIMATED CIVILIAN FEDERAL CYBERSECURITY SPENDING BY AGENCY
A2: (in millions of dollars)
A3: Organization | B3: 2023 | C3: 2024 | D3: 2025
A4: Civilian CFO Act Agencies | B4: =SUM(B5:B27) -> 10,728 | C4: 11,210 | D4: =SUM(D5:D27) -> 12,325
A5: Department of Agriculture | B5: 230 | C5: 239 | D5: 233
A6: Department of Commerce | B6: 460 | C6: 458 | D6: 420
A7: Department of Education | B7: 218 | C7: 261 | D7: 268
A8: Department of Energy | B8: 765 | C8: 731 | D8: 971
A9: Department of Health and Human Services | B9: 915 | C9: 1,043 | D9: 1,120
A10: Department of Homeland Security | B10: 2,997 | C10: 2,995 | D10: 3,152
A11: Department of Housing and Urban Development | B11: 57 | C11: 112 | D11: 99
A12: Department of Justice | B12: 1,083 | C12: 1,052 | D12: 1,162
A13: Department of Labor | B13: 79 | C13: 80 | D13: 79
A14: Department of State | B14: 569 | C14: 736 | D14: 686
A15: Department of the Interior | B15: 161 | C15: 161 | D15: 205
A16: Department of the Treasury | B16: 966 | C16: 1,064 | D16: 1,225
A17: Department of Transportation | B17: 399 | C17: 399 | D17: 472
A18: Department of Veterans Affairs | B18: 669 | C18: 655 | D18: 952
A19: Environmental Protection Agency | B19: 37 | C19: 37 | D19: 65
A20: General Services Administration | B20: 104 | C20: 132 | D20: 113
A21: National Aeronautics and Space Administration | B21: 217 | C21: 201 | D21: 185
A22: National Science Foundation | B22: 308 | C22: 296 | D22: 294
A23: Nuclear Regulatory Commission | B23: 39 | C23: 39 | D23: 40
A24: Office of Personnel Management | B24: 50 | C24: 89 | D24: 117
A25: Small Business Administration | B25: 21 | C25: 33 | D25: 35
A26: Social Security Administration | B26: 301 | C26: 314 | D26: 361
A27: U.S. Agency for International Development | B27: 83 | C27: 82 | D27: 72
A28: Non-CFO Act Agencies | B28: =SUM(B29:B90) -> 549.0 | C28: =SUM(C29:C90) -> 613.4 | D28: =SUM(D29:D90) -> 674.3
A29: Access Board | B29: 0.8 | C29: 0.9 | D29: 0.9
A30: African Development Foundation | B30: 2.4 | C30: 3.1 | D30: 3.8
A31: American Battle Monuments Commission | B31: 0.8 | C31: 1.7 | D31: 2.0
A32: Armed Forces Retirement Home | B32: 0.3 | C32: 0.3 | D32: 0.3
A33: Chemical Safety and Hazard Investigation Board | B33: 0.7 | C33: 0.8 | D33: 0.8
A34: Commission on Civil Rights | B34: 0.6 | C34: 0.6 | D34: 0.6
A35: Commodity Futures Trading Commission | B35: 12.9 | C35: 14.1 | D35: 18.1
A36: Consumer Financial Protection Bureau | B36: 29.3 | C36: 30.0 | D36: 30.5
A37: Consumer Product Safety Commission | B37: 3.8 | C37: 3.2 | D37: 3.6
A38: Corporation for National and Community Service | B38: 6.8 | C38: 8.3 | D38: 7.5
A39: Council of the Inspectors General on Integrity and Efficiency | B39: 1.1 | C39: 0.8 | D39: 0.8
A40: Court Services and Offender Supervision Agency | B40: 4.0 | C40: 4.0 | D40: 4.0
A41: Defense Nuclear Facilities Safety Board | B41: 3.3 | C41: 3.8 | D41: 3.6
A42: Denali Commission | B42: 1.0 | C42: 1.0 | D42: 1.0
A43: Election Assistance Commission | B43: 2.3 | C43: 2.3 | D43: 9.1
A44: Equal Employment Opportunity Commission | B44: 9.7 | C44: 9.6 | D44: 9.6
A45: Export-Import Bank of the United States | B45: 4.4 | C45: 5.3 | D45: 6.3
A46: Farm Credit Administration | B46: 4.0 | C46: 4.0 | D46: 4.4
A47: Federal Communications Commission | B47: 20.9 | C47: 22.1 | D47: 28.4
A48: Federal Deposit Insurance Corporation | B48: 97.5 | C48: 115.0 | D48: 122.9
A49: Federal Election Commission | B49: 8.0 | C49: 8.2 | D49: 8.7
A50: Federal Energy Regulatory Commission | B50: 24.9 | C50: 28.4 | D50: 30.7
A51: Federal Labor Relations Authority | B51: 0.4 | C51: 0.4 | D51: 0.4
A52: Federal Maritime Commission | B52: 0.2 | C52: 0.6 | D52: 0.2
A53: Federal Mediation and Conciliation Service | B53: 1.6 | C53: 1.7 | D53: 1.7
A54: Federal Retirement Thrift Investment Board | B54: 28.6 | C54: 28.6 | D54: 31.7
A55: Federal Trade Commission | B55: 19.4 | C55: 19.4 | D55: 18.9
A56: Institute of Museum and Library Services | B56: 0.7 | C56: 0.9 | D56: 0.9
A57: International Development Finance Corporation | B57: 7.9 | C57: 8.9 | D57: 10.7
A58: International Trade Commission | B58: 6.3 | C58: 7.6 | D58: 7.8
A59: Merit Systems Protection Board | B59: 0.5 | C59: 0.5 | D59: 1.5
A60: Millennium Challenge Corporation | B60: 1.7 | C60: 2.4 | D60: 2.6
A61: National Archives and Records Administration | B61: 10.1 | C61: 9.8 | D61: 20.7
A62: National Council on Disability | B62: 0.5 | C62: 0.5 | D62: 1.1
A63: National Credit Union Administration | B63: 13.2 | C63: 17.4 | D63: 17.4
A64: National Endowment for the Arts | B64: 3.4 | C64: 5.1 | D64: 2.6
A65: National Endowment for the Humanities | B65: 1.1 | C65: 1.6 | D65: 1.4
A66: National Gallery of Art | B66: 4.0 | C66: 4.1 | D66: 4.4
A67: National Labor Relations Board | B67: 3.8 | C67: 3.8 | D67: 4.7
A68: National Mediation Board | B68: 2.1 | C68: 2.2 | D68: 2.3
A69: National Transportation Safety Board | B69: 5.3 | C69: 6.8 | D69: 7.4
A70: Nuclear Waste Technical Review Board | B70: 0.4 | C70: 0.7 | D70: 0.5
A71: Occupational Safety and Health Review Commission | B71: 1.1 | C71: 1.2 | D71: 1.2
A72: Office of Government Ethics | B72: 0.7 | C72: 0.7 | D72: 0.9
A73: Office of Special Counsel | B73: 1.1 | C73: 1.1 | D73: 1.3
A74: Peace Corps | B74: 12.3 | C74: 12.3 | D74: 20.3
A75: Pension Benefit Guaranty Corporation | B75: 27.0 | C75: 32.9 | D75: 28.3
A76: Postal Regulatory Commission | B76: 1.5 | C76: 2.5 | D76: 2.2
A77: Presidio Trust | B77: 0.7 | C77: 0.7 | D77: 0.7
A78: Privacy and Civil Liberties Oversight Board | B78: 2.0 | C78: 2.1 | D78: 2.1
A79: Railroad Retirement Board | B79: 1.9 | C79: 3.4 | D79: 4.2
A80: Securities and Exchange Commission | B80: 67.5 | C80: 70.0 | D80: 70.0
A81: Selective Service System | B81: 0.5 | C81: 0.5 | D81: 0.5
A82: Smithsonian Institution | B82: 15.6 | C82: 15.6 | D82: 15.9
A83: Surface Transportation Board | B83: 2.8 | C83: 2.9 | D83: 3.5
A84: Tennessee Valley Authority | B84: 48.8 | C84: 63.4 | D84: 60.2
A85: Trade and Development Agency | B85: 1.3 | C85: 1.3 | D85: 1.3
A86: U.S. Agency for Global Media | B86: 6.0 | C86: 6.0 | D86: 10.7
A87: U.S. Army Corps of Engineers | B87: 4.0 | C87: 2.4 | D87: 10.2
A88: United States AbilityOne Commission | B88: 0.3 | C88: 0.3 | D88: 0.3
A89: United States Holocaust Memorial Museum | B89: 2.8 | C89: 3.0 | D89: 3.0
A90: United States Institute of Peace | B90: 0.6 | C90: 0.7 | D90: 0.7
A91: Total | B91: =+B28+B4 -> 11,277.0 | C91: =+C28+C4 -> 11,823.7 | D91: =+D28+D4 -> 12,999.7

Sheet Table 15-3
A1: Table 15-3. NIST FRAMEWORK FUNCTION CIVILIAN CFO ACT AGENCY FUNDING TOTALS
A2: (in millions of dollars)
A3: NIST Framework Function | B3: 2024 | C3: 2025
A4: Identify | B4: =3191-19 -> 3,172 | C4: =3576-23 -> 3,553
A5: Protect | B5: =1150-10 -> 1,140 | C5: =1256-13 -> 1,243
A6: Detect | B6: =4903-28 -> 4,875 | C6: =5219-40 -> 5,179
A7: Respond | B7: =1375-10 -> 1,365 | C7: =1563 -> 1,563
A8: Recover | B8: 317 | C8: 296
A9: Sector Risk Management & Human Capital | B9: 341 | C9: 491
A10: Total | B10: =SUM(B4:B9) -> 11,210 | C10: =SUM(C4:C9) -> 12,325
A11: This analysis excludes Department of Defense spending.

Sheet NOT Chart 16-1 (hidden)
A1: year | B1: DODSpend | C1: civSpend | D1: totals
A2: 2001 | B2: 22.389 | C2: 22.542 | D2: 44.93
A3: 2002 | B3: 23.37 | C3: 26.277 | D3: 49.647
A4: 2003 | B4: 25.907 | C4: 30.511 | D4: 56.417
A5: 2004 | B5: 27.674 | C5: 31.653 | D5: 59.327
A6: 2005 | B6: 30.584 | C6: 30.698 | D6: 61.282
A7: 2006 | B7: 33.035 | C7: 32.159 | D7: 65.194
A8: 2007 | B8: 33.352 | C8: 33.777 | D8: 67.13
A9: 2008 | B9: 35.871 | C9: 35.797 | D9: 71.668
A10: 2009 | B10: 36.222 | C10: 41.546 | D10: 77.769
A11: 2010 | B11: 36.652 | C11: 42.941 | D11: 79.594
A12: 2011 | B12: 33.408 | C12: 40.975 | D12: 74.383
A13: 2012 | B13: 35.032 | C13: 40.69 | D13: 75.722
A14: 2013 | B14: 31.948 | C14: 41.271 | D14: 73.22
A15: 2014 | B15: 31.202 | C15: 44.445 | D15: 75.647
A16: 2015 | B16: 30.414 | C16: 49.965 | D16: 80.379
A17: 2016 | B17: 30.578 | C17: 52.212 | D17: 82.79
A18: 2017 | B18: 31.669 | C18: 44.407 | D18: 76.075
A19: 2018 | B19: 33.956 | C19: 44.367 | D19: 78.323
A20: 2019 | B20: 33.6278 | C20: 46.482 | D20: 80.11

Sheet Chart 16-1 B (hidden)
A1: agencyName | B1: 2011 | C1: 2012 | D1: 2013 | E1: 2014 | F1: 2015 | G1: 2016 | H1: 2017 | I1: 2018 | J1: 2019
A2: Non-Defense | B2: 37331.59868 | C2: 37470.26835 | D2: 36980.6089 | E2: 38734.25678 | F2: 41513.29086 | G2: 43296.9771 | H2: 44923.90793 | I2: 45554.13563 | J2: 45774.96453

Sheet Chart 16-3 - Back (hidden)
A1: uniqueInvestmentIdentifier | B1: totalITSpendingFY2019 | C1: number2 | D1: moduloCounter | E1: modularValue | F1: runningTotal | G1: totalITSpend | H1: pct | I1: Quantile
A2: 029-888888605 | B2: 1208.292 | C2: 1 | D2: =MOD(Table_AP_Chart_16_3[[#This Row],[number2]],1000) -> 1 | E2: =IF(Table_AP_Chart_16_3[[#This Row],[moduloCounter]]>0, " ",Table_AP_Chart_16_3[[#This Row],[number2]]) ->  | F2: 1208.292 | G2: 45774.96453 | H2: 0.02639635033 | I2: 1
A3: 029-888888602 | B3: 730.309 | C3: 2 | D3: =MOD(Table_AP_Chart_16_3[[#This Row],[number2]],1000) -> 2 | E3: =IF(Table_AP_Chart_16_3[[#This Row],[moduloCounter]]>0, " ",Table_AP_Chart_16_3[[#This Row],[number2]]) ->  | F3: 1938.601 | G3: 45774.96453 | H3: 0.04235068273 | I3: 1
A4: 015-000000350 | B4: 669.9503 | C4: 3 | D4: =MOD(Table_AP_Chart_16_3[[#This Row],[number2]],1000) -> 3 | E4: =IF(Table_AP_Chart_16_3[[#This Row],[moduloCounter]]>0, " ",Table_AP_Chart_16_3[[#This Row],[number2]]) ->  | F4: 2608.5513 | G4: 45774.96453 | H4: 0.05698641881 | I4: 1
A5: 006-000402400 | B5: 661.361 | C5: 4 | D5: =MOD(Table_AP_Chart_16_3[[#This Row],[number2]],1000) -> 4 | E5: =IF(Table_AP_Chart_16_3[[#This Row],[moduloCounter]]>0, " ",Table_AP_Chart_16_3[[#This Row],[number2]]) ->  | F5: 3269.9123 | G5: 45774.96453 | H5: 0.07143451302 | I5: 1
A6: 009-000006265 | B6: 544.563 | C6: 5 | D6: =MOD(Table_AP_Chart_16_3[[#This Row],[number2]],1000) -> 5 | E6: =IF(Table_AP_Chart_16_3[[#This Row],[moduloCounter]]>0, " ",Table_AP_Chart_16_3[[#This Row],[number2]]) ->  | F6: 3814.4753 | G6: 45774.96453 | H6: 0.08333103781 | I6: 1
A7: 024-000005188 | B7: 494.779 | C7: 6 | D7: =MOD(Table_AP_Chart_16_3[[#This Row],[number2]],1000) -> 6 | E7: =IF(Table_AP_Chart_16_3[[#This Row],[moduloCounter]]>0, " ",Table_AP_Chart_16_3[[#This Row],[number2]]) ->  | F7: 4309.2543 | G7: 45774.96453 | H7: 0.09413998119 | I7: 1
A8: 029-888888600 | B8: 428.221 | C8: 7 | D8: =MOD(Table_AP_Chart_16_3[[#This Row],[number2]],1000) -> 7 | E8: =IF(Table_AP_Chart_16_3[[#This Row],[moduloCounter]]>0, " ",Table_AP_Chart_16_3[[#This Row],[number2]]) ->  | F8: 4737.4753 | G8: 45774.96453 | H8: 0.1034948983 | I8: 1
A9: 029-888888604 | B9: 416.439 | C9: 8 | D9: =MOD(Table_AP_Chart_16_3[[#This Row],[number2]],1000) -> 8 | E9: =IF(Table_AP_Chart_16_3[[#This Row],[moduloCounter]]>0, " ",Table_AP_Chart_16_3[[#This Row],[number2]]) ->  | F9: 5153.9143 | G9: 45774.96453 | H9: 0.1125924259 | I9: 1
A10: 016-000002544 | B10: 411.543 | C10: 9 | D10: =MOD(Table_AP_Chart_16_3[[#This Row],[number2]],1000) -> 9 | E10: =IF(Table_AP_Chart_16_3[[#This Row],[moduloCounter]]>0, " ",Table_AP_Chart_16_3[[#This Row],[number2]]) ->  | F10: 5565.4573 | G10: 45774.96453 | H10: 0.1215829954 | I10: 1
A11: 016-000002546 | B11: 406.954 | C11: 10 | D11: =MOD(Table_AP_Chart_16_3[[#This Row],[number2]],1000) -> 10 | E11: =IF(Table_AP_Chart_16_3[[#This Row],[moduloCounter]]>0, " ",Table_AP_Chart_16_3[[#This Row],[number2]]) ->  | F11: 5972.4113 | G11: 45774.96453 | H11: 0.1304733135 | I11: 1
A12: 024-000009508 | B12: 406.755 | C12: 11 | D12: =MOD(Table_AP_Chart_16_3[[#This Row],[number2]],1000) -> 11 | E12: =IF(Table_AP_Chart_16_3[[#This Row],[moduloCounter]]>0, " ",Table_AP_Chart_16_3[[#This Row],[number2]]) ->  | F12: 6379.1663 | G12: 45774.96453 | H12: 0.1393592844 | I12: 1
A13: 024-000005666 | B13: 370.147 | C13: 12 | D13: =MOD(Table_AP_Chart_16_3[[#This Row],[number2]],1000) -> 12 | E13: =IF(Table_AP_Chart_16_3[[#This Row],[moduloCounter]]>0, " ",Table_AP_Chart_16_3[[#This Row],[number2]]) ->  | F13: 6749.3133 | G13: 45774.96453 | H13: 0.1474455168 | I13: 1
A14: 029-888888603 | B14: 367.59 | C14: 13 | D14: =MOD(Table_AP_Chart_16_3[[#This Row],[number2]],1000) -> 13 | E14: =IF(Table_AP_Chart_16_3[[#This Row],[moduloCounter]]>0, " ",Table_AP_Chart_16_3[[#This Row],[number2]]) ->  | F14: 7116.9033 | G14: 45774.96453 | H14: 0.1554758889 | I14: 1
A15: 014-000000054 | B15: 346.500268 | C15: 14 | D15: =MOD(Table_AP_Chart_16_3[[#This Row],[number2]],1000) -> 14 | E15: =IF(Table_AP_Chart_16_3[[#This Row],[moduloCounter]]>0, " ",Table_AP_Chart_16_3[[#This Row],[number2]]) ->  | F15: 7463.403568 | G15: 45774.96453 | H15: 0.1630455347 | I15: 1
A16: 015-000000348 | B16: 346.353352 | C16: 15 | D16: =MOD(Table_AP_Chart_16_3[[#This Row],[number2]],1000) -> 15 | E16: =IF(Table_AP_Chart_16_3[[#This Row],[moduloCounter]]>0, " ",Table_AP_Chart_16_3[[#This Row],[number2]]) ->  | F16: 7809.75692 | G16: 45774.96453 | H16: 0.170611971 | I16: 1
A17: 014-000000475 | B17: 316.456767 | C17: 16 | D17: =MOD(Table_AP_Chart_16_3[[#This Row],[number2]],1000) -> 16 | E17: =IF(Table_AP_Chart_16_3[[#This Row],[moduloCounter]]>0, " ",Table_AP_Chart_16_3[[#This Row],[number2]]) ->  | F17: 8126.213687 | G17: 45774.96453 | H17: 0.1775252864 | I17: 1
A18: 019-000001872 | B18: 307.502048 | C18: 17 | D18: =MOD(Table_AP_Chart_16_3[[#This Row],[number2]],1000) -> 17 | E18: =IF(Table_AP_Chart_16_3[[#This Row],[moduloCounter]]>0, " ",Table_AP_Chart_16_3[[#This Row],[number2]]) ->  | F18: 8433.715735 | G18: 45774.96453 | H18: 0.1842429769 | I18: 1
A19: 011-000003560 | B19: 274.333084 | C19: 18 | D19: =MOD(Table_AP_Chart_16_3[[#This Row],[number2]],1000) -> 18 | E19: =IF(Table_AP_Chart_16_3[[#This Row],[moduloCounter]]>0, " ",Table_AP_Chart_16_3[[#This Row],[number2]]) ->  | F19: 8708.048819 | G19: 45774.96453 | H19: 0.1902360582 | I19: 1
A20: 009-000267389 | B20: 274.237 | C20: 19 | D20: =MOD(Table_AP_Chart_16_3[[#This Row],[number2]],1000) -> 19 | E20: =IF(Table_AP_Chart_16_3[[#This Row],[moduloCounter]]>0, " ",Table_AP_Chart_16_3[[#This Row],[number2]]) ->  | F20: 8982.285819 | G20: 45774.96453 | H20: 0.1962270405 | I20: 1
A21: 015-000200214 | B21: 256.197512 | C21: 20 | D21: =MOD(Table_AP_Chart_16_3[[#This Row],[number2]],1000) -> 20 | E21: =IF(Table_AP_Chart_16_3[[#This Row],[moduloCounter]]>0, " ",Table_AP_Chart_16_3[[#This Row],[number2]]) ->  | F21: 9238.483331 | G21: 45774.96453 | H21: 0.201823932 | I21: 1
A22: 010-000000357 | B22: 244.112532 | C22: 21 | D22: =MOD(Table_AP_Chart_16_3[[#This Row],[number2]],1000) -> 21 | E22: =IF(Table_AP_Chart_16_3[[#This Row],[moduloCounter]]>0, " ",Table_AP_Chart_16_3[[#This Row],[number2]]) ->  | F22: 9482.595863 | G22: 45774.96453 | H22: 0.2071568151 | I22: 1
A23: 024-000009571 | B23: 237.637 | C23: 22 | D23: =MOD(Table_AP_Chart_16_3[[#This Row],[number2]],1000) -> 22 | E23: =IF(Table_AP_Chart_16_3[[#This Row],[moduloCounter]]>0, " ",Table_AP_Chart_16_3[[#This Row],[number2]]) ->  | F23: 9720.232863 | G23: 45774.96453 | H23: 0.2123482336 | I23: 1
A24: 005-000000232 | B24: 235.018 | C24: 23 | D24: =MOD(Table_AP_Chart_16_3[[#This Row],[number2]],1000) -> 23 | E24: =IF(Table_AP_Chart_16_3[[#This Row],[moduloCounter]]>0, " ",Table_AP_Chart_16_3[[#This Row],[number2]]) ->  | F24: 9955.250863 | G24: 45774.96453 | H24: 0.2174824375 | I24: 1
A25: 015-000000349 | B25: 232.905088 | C25: 24 | D25: =MOD(Table_AP_Chart_16_3[[#This Row],[number2]],1000) -> 24 | E25: =IF(Table_AP_Chart_16_3[[#This Row],[moduloCounter]]>0, " ",Table_AP_Chart_16_3[[#This Row],[number2]]) ->  | F25: 10188.15595 | G25: 45774.96453 | H25: 0.2225704827 | I25: 1
A26: 026-000000003 | B26: 231.203867 | C26: 25 | D26: =MOD(Table_AP_Chart_16_3[[#This Row],[number2]],1000) -> 25 | E26: =IF(Table_AP_Chart_16_3[[#This Row],[moduloCounter]]>0, " ",Table_AP_Chart_16_3[[#This Row],[number2]]) ->  | F26: 10419.35982 | G26: 45774.96453 | H26: 0.227621363 | I26: 1
A27: 024-000009990 | B27: 217.661 | C27: 26 | D27: =MOD(Table_AP_Chart_16_3[[#This Row],[number2]],1000) -> 26 | E27: =IF(Table_AP_Chart_16_3[[#This Row],[moduloCounter]]>0, " ",Table_AP_Chart_16_3[[#This Row],[number2]]) ->  | F27: 10637.02082 | G27: 45774.96453 | H27: 0.2323763858 | I27: 1
A28: 010-000000330 | B28: 207.974516 | C28: 27 | D28: =MOD(Table_AP_Chart_16_3[[#This Row],[number2]],1000) -> 27 | E28: =IF(Table_AP_Chart_16_3[[#This Row],[moduloCounter]]>0, " ",Table_AP_Chart_16_3[[#This Row],[number2]]) ->  | F28: 10844.99533 | G28: 45774.96453 | H28: 0.2369197976 | I28: 1
A29: 024-000005439 | B29: 205.165 | C29: 28 | D29: =MOD(Table_AP_Chart_16_3[[#This Row],[number2]],1000) -> 28 | E29: =IF(Table_AP_Chart_16_3[[#This Row],[moduloCounter]]>0, " ",Table_AP_Chart_16_3[[#This Row],[number2]]) ->  | F29: 11050.16033 | G29: 45774.96453 | H29: 0.2414018328 | I29: 1
A30: 009-000339398 | B30: 203.428 | C30: 29 | D30: =MOD(Table_AP_Chart_16_3[[#This Row],[number2]],1000) -> 29 | E30: =IF(Table_AP_Chart_16_3[[#This Row],[moduloCounter]]>0, " ",Table_AP_Chart_16_3[[#This Row],[number2]]) ->  | F30: 11253.58833 | G30: 45774.96453 | H30: 0.2458459214 | I30: 1
A31: 014-000000378 | B31: 202.089261 | C31: 30 | D31: =MOD(Table_AP_Chart_16_3[[#This Row],[number2]],1000) -> 30 | E31: =IF(Table_AP_Chart_16_3[[#This Row],[moduloCounter]]>0, " ",Table_AP_Chart_16_3[[#This Row],[number2]]) ->  | F31: 11455.67759 | G31: 45774.96453 | H31: 0.250260764 | I31: 1
A32: 015-000000285 | B32: 189.859627 | C32: 31 | D32: =MOD(Table_AP_Chart_16_3[[#This Row],[number2]],1000) -> 31 | E32: =IF(Table_AP_Chart_16_3[[#This Row],[moduloCounter]]>0, " ",Table_AP_Chart_16_3[[#This Row],[number2]]) ->  | F32: 11645.53722 | G32: 45774.96453 | H32: 0.2544084379 | I32: 1
A33: 015-000200204 | B33: 183.134782 | C33: 32 | D33: =MOD(Table_AP_Chart_16_3[[#This Row],[number2]],1000) -> 32 | E33: =IF(Table_AP_Chart_16_3[[#This Row],[moduloCounter]]>0, " ",Table_AP_Chart_16_3[[#This Row],[number2]]) ->  | F33: 11828.672 | G33: 45774.96453 | H33: 0.2584092009 | I33: 1
A34: 014-000000043 | B34: 181.42006 | C34: 33 | D34: =MOD(Table_AP_Chart_16_3[[#This Row],[number2]],1000) -> 33 | E34: =IF(Table_AP_Chart_16_3[[#This Row],[moduloCounter]]>0, " ",Table_AP_Chart_16_3[[#This Row],[number2]]) ->  | F34: 12010.09206 | G34: 45774.96453 | H34: 0.262372504 | I34: 1
A35: 021-260306626 | B35: 178.553 | C35: 34 | D35: =MOD(Table_AP_Chart_16_3[[#This Row],[number2]],1000) -> 34 | E35: =IF(Table_AP_Chart_16_3[[#This Row],[moduloCounter]]>0, " ",Table_AP_Chart_16_3[[#This Row],[number2]]) ->  | F35: 12188.64506 | G35: 45774.96453 | H35: 0.2662731733 | I35: 1
A36: 016-000000008 | B36: 170.229 | C36: 35 | D36: =MOD(Table_AP_Chart_16_3[[#This Row],[number2]],1000) -> 35 | E36: =IF(Table_AP_Chart_16_3[[#This Row],[moduloCounter]]>0, " ",Table_AP_Chart_16_3[[#This Row],[number2]]) ->  | F36: 12358.87406 | G36: 45774.96453 | H36: 0.2699919965 | I36: 1
A37: 029-555555302 | B37: 169.424 | C37: 36 | D37: =MOD(Table_AP_Chart_16_3[[#This Row],[number2]],1000) -> 36 | E37: =IF(Table_AP_Chart_16_3[[#This Row],[moduloCounter]]>0, " ",Table_AP_Chart_16_3[[#This Row],[number2]]) ->  | F37: 12528.29806 | G37: 45774.96453 | H37: 0.2736932337 | I37: 1
A38: 024-000005253 | B38: 168.808 | C38: 37 | D38: =MOD(Table_AP_Chart_16_3[[#This Row],[number2]],1000) -> 37 | E38: =IF(Table_AP_Chart_16_3[[#This Row],[moduloCounter]]>0, " ",Table_AP_Chart_16_3[[#This Row],[number2]]) ->  | F38: 12697.10606 | G38: 45774.96453 | H38: 0.2773810137 | I38: 1
A39: 005-000003010 | B39: 168.21 | C39: 38 | D39: =MOD(Table_AP_Chart_16_3[[#This Row],[number2]],1000) -> 38 | E39: =IF(Table_AP_Chart_16_3[[#This Row],[moduloCounter]]>0, " ",Table_AP_Chart_16_3[[#This Row],[number2]]) ->  | F39: 12865.31606 | G39: 45774.96453 | H39: 0.2810557298 | I39: 1
A40: 024-000003029 | B40: 167.748 | C40: 39 | D40: =MOD(Table_AP_Chart_16_3[[#This Row],[number2]],1000) -> 39 | E40: =IF(Table_AP_Chart_16_3[[#This Row],[moduloCounter]]>0, " ",Table_AP_Chart_16_3[[#This Row],[number2]]) ->  | F40: 13033.06406 | G40: 45774.96453 | H40: 0.2847203531 | I40: 1
A41: 025-000004540 | B41: 165.736 | C41: 40 | D41: =MOD(Table_AP_Chart_16_3[[#This Row],[number2]],1000) -> 40 | E41: =IF(Table_AP_Chart_16_3[[#This Row],[moduloCounter]]>0, " ",Table_AP_Chart_16_3[[#This Row],[number2]]) ->  | F41: 13198.80006 | G41: 45774.96453 | H41: 0.2883410222 | I41: 1
A42: 024-000005119 | B42: 165.303 | C42: 41 | D42: =MOD(Table_AP_Chart_16_3[[#This Row],[number2]],1000) -> 41 | E42: =IF(Table_AP_Chart_16_3[[#This Row],[moduloCounter]]>0, " ",Table_AP_Chart_16_3[[#This Row],[number2]]) ->  | F42: 13364.10306 | G42: 45774.96453 | H42: 0.291952232 | I42: 1
A43: 005-000000098 | B43: 162.415 | C43: 42 | D43: =MOD(Table_AP_Chart_16_3[[#This Row],[number2]],1000) -> 42 | E43: =IF(Table_AP_Chart_16_3[[#This Row],[moduloCounter]]>0, " ",Table_AP_Chart_16_3[[#This Row],[number2]]) ->  | F43: 13526.51806 | G43: 45774.96453 | H43: 0.2955003505 | I43: 1
A44: 014-000000048 | B44: 156.562017 | C44: 43 | D44: =MOD(Table_AP_Chart_16_3[[#This Row],[number2]],1000) -> 43 | E44: =IF(Table_AP_Chart_16_3[[#This Row],[moduloCounter]]>0, " ",Table_AP_Chart_16_3[[#This Row],[number2]]) ->  | F44: 13683.08008 | G44: 45774.96453 | H44: 0.2989206048 | I44: 1
A45: 021-514765477 | B45: 152.58 | C45: 44 | D45: =MOD(Table_AP_Chart_16_3[[#This Row],[number2]],1000) -> 44 | E45: =IF(Table_AP_Chart_16_3[[#This Row],[moduloCounter]]>0, " ",Table_AP_Chart_16_3[[#This Row],[number2]]) ->  | F45: 13835.66008 | G45: 45774.96453 | H45: 0.3022538679 | I45: 1
A46: 015-000000044 | B46: 151.144778 | C46: 45 | D46: =MOD(Table_AP_Chart_16_3[[#This Row],[number2]],1000) -> 45 | E46: =IF(Table_AP_Chart_16_3[[#This Row],[moduloCounter]]>0, " ",Table_AP_Chart_16_3[[#This Row],[number2]]) ->  | F46: 13986.80486 | G46: 45774.96453 | H46: 0.3055557771 | I46: 1
A47: 015-000000039 | B47: 149.242908 | C47: 46 | D47: =MOD(Table_AP_Chart_16_3[[#This Row],[number2]],1000) -> 46 | E47: =IF(Table_AP_Chart_16_3[[#This Row],[moduloCounter]]>0, " ",Table_AP_Chart_16_3[[#This Row],[number2]]) ->  | F47: 14136.04777 | G47: 45774.96453 | H47: 0.3088161381 | I47: 1
A48: 019-000001904 | B48: 149.175 | C48: 47 | D48: =MOD(Table_AP_Chart_16_3[[#This Row],[number2]],1000) -> 47 | E48: =IF(Table_AP_Chart_16_3[[#This Row],[moduloCounter]]>0, " ",Table_AP_Chart_16_3[[#This Row],[number2]]) ->  | F48: 14285.22277 | G48: 45774.96453 | H48: 0.3120750155 | I48: 1
A49: 021-623287423 | B49: 147.580807 | C49: 48 | D49: =MOD(Table_AP_Chart_16_3[[#This Row],[number2]],1000) -> 48 | E49: =IF(Table_AP_Chart_16_3[[#This Row],[moduloCounter]]>0, " ",Table_AP_Chart_16_3[[#This Row],[number2]]) ->  | F49: 14432.80357 | G49: 45774.96453 | H49: 0.3152990662 | I49: 1
A50: 009-000339399 | B50: 145.177 | C50: 49 | D50: =MOD(Table_AP_Chart_16_3[[#This Row],[number2]],1000) -> 49 | E50: =IF(Table_AP_Chart_16_3[[#This Row],[moduloCounter]]>0, " ",Table_AP_Chart_16_3[[#This Row],[number2]]) ->  | F50: 14577.98057 | G50: 45774.96453 | H50: 0.3184706034 | I50: 1
A51: 006-000313000 | B51: 140.866 | C51: 50 | D51: =MOD(Table_AP_Chart_16_3[[#This Row],[number2]],1000) -> 50 | E51: =IF(Table_AP_Chart_16_3[[#This Row],[moduloCounter]]>0, " ",Table_AP_Chart_16_3[[#This Row],[number2]]) ->  | F51: 14718.84657 | G51: 45774.96453 | H51: 0.3215479624 | I51: 1
A52: 021-142305975 | B52: 136.04 | C52: 51 | D52: =MOD(Table_AP_Chart_16_3[[#This Row],[number2]],1000) -> 51 | E52: =IF(Table_AP_Chart_16_3[[#This Row],[moduloCounter]]>0, " ",Table_AP_Chart_16_3[[#This Row],[number2]]) ->  | F52: 14854.88657 | G52: 45774.96453 | H52: 0.3245198926 | I52: 1
A53: 006-000351100 | B53: 135.974386 | C53: 52 | D53: =MOD(Table_AP_Chart_16_3[[#This Row],[number2]],1000) -> 52 | E53: =IF(Table_AP_Chart_16_3[[#This Row],[moduloCounter]]>0, " ",Table_AP_Chart_16_3[[#This Row],[number2]]) ->  | F53: 14990.86096 | G53: 45774.96453 | H53: 0.3274903894 | I53: 1
A54: 011-000003457 | B54: 133.9775 | C54: 53 | D54: =MOD(Table_AP_Chart_16_3[[#This Row],[number2]],1000) -> 53 | E54: =IF(Table_AP_Chart_16_3[[#This Row],[moduloCounter]]>0, " ",Table_AP_Chart_16_3[[#This Row],[number2]]) ->  | F54: 15124.83846 | G54: 45774.96453 | H54: 0.3304172622 | I54: 1
A55: 016-000002259 | B55: 132 | C55: 54 | D55: =MOD(Table_AP_Chart_16_3[[#This Row],[number2]],1000) -> 54 | E55: =IF(Table_AP_Chart_16_3[[#This Row],[moduloCounter]]>0, " ",Table_AP_Chart_16_3[[#This Row],[number2]]) ->  | F55: 15256.83846 | G55: 45774.96453 | H55: 0.3333009346 | I55: 1
A56: 029-666666404 | B56: 131.608 | C56: 55 | D56: =MOD(Table_AP_Chart_16_3[[#This Row],[number2]],1000) -> 55 | E56: =IF(Table_AP_Chart_16_3[[#This Row],[moduloCounter]]>0, " ",Table_AP_Chart_16_3[[#This Row],[number2]]) ->  | F56: 15388.44646 | G56: 45774.96453 | H56: 0.3361760433 | I56: 1
A57: 026-000000001 | B57: 131.053271 | C57: 56 | D57: =MOD(Table_AP_Chart_16_3[[#This Row],[number2]],1000) -> 56 | E57: =IF(Table_AP_Chart_16_3[[#This Row],[moduloCounter]]>0, " ",Table_AP_Chart_16_3[[#This Row],[number2]]) ->  | F57: 15519.49973 | G57: 45774.96453 | H57: 0.3390390334 | I57: 1
A58: 006-000402100 | B58: 129.842 | C58: 57 | D58: =MOD(Table_AP_Chart_16_3[[#This Row],[number2]],1000) -> 57 | E58: =IF(Table_AP_Chart_16_3[[#This Row],[moduloCounter]]>0, " ",Table_AP_Chart_16_3[[#This Row],[number2]]) ->  | F58: 15649.34173 | G58: 45774.96453 | H58: 0.3418755621 | I58: 1
A59: 016-000002258 | B59: 129.793 | C59: 58 | D59: =MOD(Table_AP_Chart_16_3[[#This Row],[number2]],1000) -> 58 | E59: =IF(Table_AP_Chart_16_3[[#This Row],[moduloCounter]]>0, " ",Table_AP_Chart_16_3[[#This Row],[number2]]) ->  | F59: 15779.13473 | G59: 45774.96453 | H59: 0.3447110204 | I59: 1
A60: 026-000000002 | B60: 128.560536 | C60: 59 | D60: =MOD(Table_AP_Chart_16_3[[#This Row],[number2]],1000) -> 59 | E60: =IF(Table_AP_Chart_16_3[[#This Row],[moduloCounter]]>0, " ",Table_AP_Chart_16_3[[#This Row],[number2]]) ->  | F60: 15907.69527 | G60: 45774.96453 | H60: 0.3475195542 | I60: 1
A61: 024-000003129 | B61: 127.02 | C61: 60 | D61: =MOD(Table_AP_Chart_16_3[[#This Row],[number2]],1000) -> 60 | E61: =IF(Table_AP_Chart_16_3[[#This Row],[moduloCounter]]>0, " ",Table_AP_Chart_16_3[[#This Row],[number2]]) ->  | F61: 16034.71527 | G61: 45774.96453 | H61: 0.3502944335 | I61: 1
A62: 014-000000042 | B62: 125.781091 | C62: 61 | D62: =MOD(Table_AP_Chart_16_3[[#This Row],[number2]],1000) -> 61 | E62: =IF(Table_AP_Chart_16_3[[#This Row],[moduloCounter]]>0, " ",Table_AP_Chart_16_3[[#This Row],[number2]]) ->  | F62: 16160.49636 | G62: 45774.96453 | H62: 0.3530422475 | I62: 1
A63: 021-078461582 | B63: 124.35 | C63: 62 | D63: =MOD(Table_AP_Chart_16_3[[#This Row],[number2]],1000) -> 62 | E63: =IF(Table_AP_Chart_16_3[[#This Row],[moduloCounter]]>0, " ",Table_AP_Chart_16_3[[#This Row],[number2]]) ->  | F63: 16284.84636 | G63: 45774.96453 | H63: 0.3557587979 | I63: 1
A64: 015-000200139 | B64: 123.942207 | C64: 63 | D64: =MOD(Table_AP_Chart_16_3[[#This Row],[number2]],1000) -> 63 | E64: =IF(Table_AP_Chart_16_3[[#This Row],[moduloCounter]]>0, " ",Table_AP_Chart_16_3[[#This Row],[number2]]) ->  | F64: 16408.78857 | G64: 45774.96453 | H64: 0.3584664397 | I64: 1
A65: 009-000316812 | B65: 123.854 | C65: 64 | D65: =MOD(Table_AP_Chart_16_3[[#This Row],[number2]],1000) -> 64 | E65: =IF(Table_AP_Chart_16_3[[#This Row],[moduloCounter]]>0, " ",Table_AP_Chart_16_3[[#This Row],[number2]]) ->  | F65: 16532.64257 | G65: 45774.96453 | H65: 0.3611721546 | I65: 1
A66: 029-888888601 | B66: 123.8 | C66: 65 | D66: =MOD(Table_AP_Chart_16_3[[#This Row],[number2]],1000) -> 65 | E66: =IF(Table_AP_Chart_16_3[[#This Row],[moduloCounter]]>0, " ",Table_AP_Chart_16_3[[#This Row],[number2]]) ->  | F66: 16656.44257 | G66: 45774.96453 | H66: 0.3638766897 | I66: 1
A67: 018-000003203 | B67: 122.5 | C67: 66 | D67: =MOD(Table_AP_Chart_16_3[[#This Row],[number2]],1000) -> 66 | E67: =IF(Table_AP_Chart_16_3[[#This Row],[moduloCounter]]>0, " ",Table_AP_Chart_16_3[[#This Row],[number2]]) ->  | F67: 16778.94257 | G67: 45774.96453 | H67: 0.366552825 | I67: 1
A68: 021-089571105 | B68: 120.85 | C68: 67 | D68: =MOD(Table_AP_Chart_16_3[[#This Row],[number2]],1000) -> 67 | E68: =IF(Table_AP_Chart_16_3[[#This Row],[moduloCounter]]>0, " ",Table_AP_Chart_16_3[[#This Row],[number2]]) ->  | F68: 16899.79256 | G68: 45774.96453 | H68: 0.3691929145 | I68: 1
A69: 011-000002042 | B69: 120.555411 | C69: 68 | D69: =MOD(Table_AP_Chart_16_3[[#This Row],[number2]],1000) -> 68 | E69: =IF(Table_AP_Chart_16_3[[#This Row],[moduloCounter]]>0, " ",Table_AP_Chart_16_3[[#This Row],[number2]]) ->  | F69: 17020.34798 | G69: 45774.96453 | H69: 0.3718265683 | I69: 1
A70: 029-666666403 | B70: 118.4 | C70: 69 | D70: =MOD(Table_AP_Chart_16_3[[#This Row],[number2]],1000) -> 69 | E70: =IF(Table_AP_Chart_16_3[[#This Row],[moduloCounter]]>0, " ",Table_AP_Chart_16_3[[#This Row],[number2]]) ->  | F70: 17138.74798 | G70: 45774.96453 | H70: 0.374413135 | I70: 1
A71: 024-000005052 | B71: 117.704 | C71: 70 | D71: =MOD(Table_AP_Chart_16_3[[#This Row],[number2]],1000) -> 70 | E71: =IF(Table_AP_Chart_16_3[[#This Row],[moduloCounter]]>0, " ",Table_AP_Chart_16_3[[#This Row],[number2]]) ->  | F71: 17256.45198 | G71: 45774.96453 | H71: 0.3769844969 | I71: 1
A72: 024-000003015 | B72: 116.914 | C72: 71 | D72: =MOD(Table_AP_Chart_16_3[[#This Row],[number2]],1000) -> 71 | E72: =IF(Table_AP_Chart_16_3[[#This Row],[moduloCounter]]>0, " ",Table_AP_Chart_16_3[[#This Row],[number2]]) ->  | F72: 17373.36598 | G72: 45774.96453 | H72: 0.3795386005 | I72: 1
A73: 024-000005382 | B73: 115.598 | C73: 72 | D73: =MOD(Table_AP_Chart_16_3[[#This Row],[number2]],1000) -> 72 | E73: =IF(Table_AP_Chart_16_3[[#This Row],[moduloCounter]]>0, " ",Table_AP_Chart_16_3[[#This Row],[number2]]) ->  | F73: 17488.96398 | G73: 45774.96453 | H73: 0.3820639547 | I73: 1
A74: 021-130077684 | B74: 115.018652 | C74: 73 | D74: =MOD(Table_AP_Chart_16_3[[#This Row],[number2]],1000) -> 73 | E74: =IF(Table_AP_Chart_16_3[[#This Row],[moduloCounter]]>0, " ",Table_AP_Chart_16_3[[#This Row],[number2]]) ->  | F74: 17603.98263 | G74: 45774.96453 | H74: 0.3845766525 | I74: 1
A75: 006-000805000 | B75: 114.002398 | C75: 74 | D75: =MOD(Table_AP_Chart_16_3[[#This Row],[number2]],1000) -> 74 | E75: =IF(Table_AP_Chart_16_3[[#This Row],[moduloCounter]]>0, " ",Table_AP_Chart_16_3[[#This Row],[number2]]) ->  | F75: 17717.98503 | G75: 45774.96453 | H75: 0.3870671492 | I75: 1
A76: 020-000020201 | B76: 113.49 | C76: 75 | D76: =MOD(Table_AP_Chart_16_3[[#This Row],[number2]],1000) -> 75 | E76: =IF(Table_AP_Chart_16_3[[#This Row],[moduloCounter]]>0, " ",Table_AP_Chart_16_3[[#This Row],[number2]]) ->  | F76: 17831.47503 | G76: 45774.96453 | H76: 0.389546452 | I76: 1
A77: 016-000002260 | B77: 111.634 | C77: 76 | D77: =MOD(Table_AP_Chart_16_3[[#This Row],[number2]],1000) -> 76 | E77: =IF(Table_AP_Chart_16_3[[#This Row],[moduloCounter]]>0, " ",Table_AP_Chart_16_3[[#This Row],[number2]]) ->  | F77: 17943.10903 | G77: 45774.96453 | H77: 0.3919852087 | I77: 1
A78: 202-000001395 | B78: 110.731 | C78: 77 | D78: =MOD(Table_AP_Chart_16_3[[#This Row],[number2]],1000) -> 77 | E78: =IF(Table_AP_Chart_16_3[[#This Row],[moduloCounter]]>0, " ",Table_AP_Chart_16_3[[#This Row],[number2]]) ->  | F78: 18053.84003 | G78: 45774.96453 | H78: 0.3944042384 | I78: 1
A79: 024-000005605 | B79: 109.813 | C79: 78 | D79: =MOD(Table_AP_Chart_16_3[[#This Row],[number2]],1000) -> 78 | E79: =IF(Table_AP_Chart_16_3[[#This Row],[moduloCounter]]>0, " ",Table_AP_Chart_16_3[[#This Row],[number2]]) ->  | F79: 18163.65303 | G79: 45774.96453 | H79: 0.3968032135 | I79: 1
A80: 024-000005053 | B80: 109.662 | C80: 79 | D80: =MOD(Table_AP_Chart_16_3[[#This Row],[number2]],1000) -> 79 | E80: =IF(Table_AP_Chart_16_3[[#This Row],[moduloCounter]]>0, " ",Table_AP_Chart_16_3[[#This Row],[number2]]) ->  | F80: 18273.31503 | G80: 45774.96453 | H80: 0.3991988899 | I80: 1
A81: 021-435692236 | B81: 109.1 | C81: 80 | D81: =MOD(Table_AP_Chart_16_3[[#This Row],[number2]],1000) -> 80 | E81: =IF(Table_AP_Chart_16_3[[#This Row],[moduloCounter]]>0, " ",Table_AP_Chart_16_3[[#This Row],[number2]]) ->  | F81: 18382.41503 | G81: 45774.96453 | H81: 0.4015822888 | I81: 1
A82: 024-000000593 | B82: 108.817 | C82: 81 | D82: =MOD(Table_AP_Chart_16_3[[#This Row],[number2]],1000) -> 81 | E82: =IF(Table_AP_Chart_16_3[[#This Row],[moduloCounter]]>0, " ",Table_AP_Chart_16_3[[#This Row],[number2]]) ->  | F82: 18491.23203 | G82: 45774.96453 | H82: 0.4039595053 | I82: 1
A83: 014-000000474 | B83: 108.353234 | C83: 82 | D83: =MOD(Table_AP_Chart_16_3[[#This Row],[number2]],1000) -> 82 | E83: =IF(Table_AP_Chart_16_3[[#This Row],[moduloCounter]]>0, " ",Table_AP_Chart_16_3[[#This Row],[number2]]) ->  | F83: 18599.58526 | G83: 45774.96453 | H83: 0.4063265903 | I83: 1
A84: 029-777777015 | B84: 107.555 | C84: 83 | D84: =MOD(Table_AP_Chart_16_3[[#This Row],[number2]],1000) -> 83 | E84: =IF(Table_AP_Chart_16_3[[#This Row],[moduloCounter]]>0, " ",Table_AP_Chart_16_3[[#This Row],[number2]]) ->  | F84: 18707.14026 | G84: 45774.96453 | H84: 0.4086762371 | I84: 1
A85: 015-000000395 | B85: 107 | C85: 84 | D85: =MOD(Table_AP_Chart_16_3[[#This Row],[number2]],1000) -> 84 | E85: =IF(Table_AP_Chart_16_3[[#This Row],[moduloCounter]]>0, " ",Table_AP_Chart_16_3[[#This Row],[number2]]) ->  | F85: 18814.14026 | G85: 45774.96453 | H85: 0.4110137594 | I85: 1
A86: 009-000001362 | B86: 105.86 | C86: 85 | D86: =MOD(Table_AP_Chart_16_3[[#This Row],[number2]],1000) -> 85 | E86: =IF(Table_AP_Chart_16_3[[#This Row],[moduloCounter]]>0, " ",Table_AP_Chart_16_3[[#This Row],[number2]]) ->  | F86: 18920.00026 | G86: 45774.96453 | H86: 0.4133263773 | I86: 1
A87: 021-129509301 | B87: 102.51157 | C87: 86 | D87: =MOD(Table_AP_Chart_16_3[[#This Row],[number2]],1000) -> 86 | E87: =IF(Table_AP_Chart_16_3[[#This Row],[moduloCounter]]>0, " ",Table_AP_Chart_16_3[[#This Row],[number2]]) ->  | F87: 19022.51183 | G87: 45774.96453 | H87: 0.4155658453 | I87: 1
A88: 019-000001975 | B88: 101.757 | C88: 87 | D88: =MOD(Table_AP_Chart_16_3[[#This Row],[number2]],1000) -> 87 | E88: =IF(Table_AP_Chart_16_3[[#This Row],[moduloCounter]]>0, " ",Table_AP_Chart_16_3[[#This Row],[number2]]) ->  | F88: 19124.26883 | G88: 45774.96453 | H88: 0.417788829 | I88: 1
A89: 014-000000044 | B89: 100.991007 | C89: 88 | D89: =MOD(Table_AP_Chart_16_3[[#This Row],[number2]],1000) -> 88 | E89: =IF(Table_AP_Chart_16_3[[#This Row],[moduloCounter]]>0, " ",Table_AP_Chart_16_3[[#This Row],[number2]]) ->  | F89: 19225.25984 | G89: 45774.96453 | H89: 0.4199950788 | I89: 1
A90: 015-000000051 | B90: 100.78644 | C90: 89 | D90: =MOD(Table_AP_Chart_16_3[[#This Row],[number2]],1000) -> 89 | E90: =IF(Table_AP_Chart_16_3[[#This Row],[moduloCounter]]>0, " ",Table_AP_Chart_16_3[[#This Row],[number2]]) ->  | F90: 19326.04628 | G90: 45774.96453 | H90: 0.4221968597 | I90: 1
A91: 011-000003575 | B91: 100.432161 | C91: 90 | D91: =MOD(Table_AP_Chart_16_3[[#This Row],[number2]],1000) -> 90 | E91: =IF(Table_AP_Chart_16_3[[#This Row],[moduloCounter]]>0, " ",Table_AP_Chart_16_3[[#This Row],[number2]]) ->  | F91: 19426.47844 | G91: 45774.96453 | H91: 0.4243909009 | I91: 1
A92: 015-000000089 | B92: 100.360986 | C92: 91 | D92: =MOD(Table_AP_Chart_16_3[[#This Row],[number2]],1000) -> 91 | E92: =IF(Table_AP_Chart_16_3[[#This Row],[moduloCounter]]>0, " ",Table_AP_Chart_16_3[[#This Row],[number2]]) ->  | F92: 19526.83942 | G92: 45774.96453 | H92: 0.4265833873 | I92: 1
A93: 202-000001393 | B93: 100.205 | C93: 92 | D93: =MOD(Table_AP_Chart_16_3[[#This Row],[number2]],1000) -> 92 | E93: =IF(Table_AP_Chart_16_3[[#This Row],[moduloCounter]]>0, " ",Table_AP_Chart_16_3[[#This Row],[number2]]) ->  | F93: 19627.04442 | G93: 45774.96453 | H93: 0.428772466 | I93: 1
A94: 011-000003569 | B94: 100.003334 | C94: 93 | D94: =MOD(Table_AP_Chart_16_3[[#This Row],[number2]],1000) -> 93 | E94: =IF(Table_AP_Chart_16_3[[#This Row],[moduloCounter]]>0, " ",Table_AP_Chart_16_3[[#This Row],[number2]]) ->  | F94: 19727.04776 | G94: 45774.96453 | H94: 0.4309571391 | I94: 1
A95: 014-000000032 | B95: 99.135174 | C95: 94 | D95: =MOD(Table_AP_Chart_16_3[[#This Row],[number2]],1000) -> 94 | E95: =IF(Table_AP_Chart_16_3[[#This Row],[moduloCounter]]>0, " ",Table_AP_Chart_16_3[[#This Row],[number2]]) ->  | F95: 19826.18293 | G95: 45774.96453 | H95: 0.4331228464 | I95: 1
A96: 018-000000036 | B96: 97.281 | C96: 95 | D96: =MOD(Table_AP_Chart_16_3[[#This Row],[number2]],1000) -> 95 | E96: =IF(Table_AP_Chart_16_3[[#This Row],[moduloCounter]]>0, " ",Table_AP_Chart_16_3[[#This Row],[number2]]) ->  | F96: 19923.46393 | G96: 45774.96453 | H96: 0.4352480474 | I96: 1
A97: 024-000005265 | B97: 97.22 | C97: 96 | D97: =MOD(Table_AP_Chart_16_3[[#This Row],[number2]],1000) -> 96 | E97: =IF(Table_AP_Chart_16_3[[#This Row],[moduloCounter]]>0, " ",Table_AP_Chart_16_3[[#This Row],[number2]]) ->  | F97: 20020.68393 | G97: 45774.96453 | H97: 0.4373719158 | I97: 1
A98: 005-000000229 | B98: 96.977 | C98: 97 | D98: =MOD(Table_AP_Chart_16_3[[#This Row],[number2]],1000) -> 97 | E98: =IF(Table_AP_Chart_16_3[[#This Row],[moduloCounter]]>0, " ",Table_AP_Chart_16_3[[#This Row],[number2]]) ->  | F98: 20117.66093 | G98: 45774.96453 | H98: 0.4394904756 | I98: 1
A99: 019-000002205 | B99: 96.552 | C99: 98 | D99: =MOD(Table_AP_Chart_16_3[[#This Row],[number2]],1000) -> 98 | E99: =IF(Table_AP_Chart_16_3[[#This Row],[moduloCounter]]>0, " ",Table_AP_Chart_16_3[[#This Row],[number2]]) ->  | F99: 20214.21293 | G99: 45774.96453 | H99: 0.4415997508 | I99: 1
A100: 006-000804400 | B100: 96.455319 | C100: 99 | D100: =MOD(Table_AP_Chart_16_3[[#This Row],[number2]],1000) -> 99 | E100: =IF(Table_AP_Chart_16_3[[#This Row],[moduloCounter]]>0, " ",Table_AP_Chart_16_3[[#This Row],[number2]]) ->  | F100: 20310.66825 | G100: 45774.96453 | H100: 0.443706914 | I100: 1
A101: 024-000006079 | B101: 96.275 | C101: 100 | D101: =MOD(Table_AP_Chart_16_3[[#This Row],[number2]],1000) -> 100 | E101: =IF(Table_AP_Chart_16_3[[#This Row],[moduloCounter]]>0, " ",Table_AP_Chart_16_3[[#This Row],[number2]]) ->  | F101: 20406.94325 | G101: 45774.96453 | H101: 0.4458101379 | I101: 1
A102: 010-000002181 | B102: 95.774846 | C102: 101 | D102: =MOD(Table_AP_Chart_16_3[[#This Row],[number2]],1000) -> 101 | E102: =IF(Table_AP_Chart_16_3[[#This Row],[moduloCounter]]>0, " ",Table_AP_Chart_16_3[[#This Row],[number2]]) ->  | F102: 20502.7181 | G102: 45774.96453 | H102: 0.4479024355 | I102: 1
A103: 029-777777501 | B103: 94.533 | C103: 102 | D103: =MOD(Table_AP_Chart_16_3[[#This Row],[number2]],1000) -> 102 | E103: =IF(Table_AP_Chart_16_3[[#This Row],[moduloCounter]]>0, " ",Table_AP_Chart_16_3[[#This Row],[number2]]) ->  | F103: 20597.2511 | G103: 45774.96453 | H103: 0.4499676036 | I103: 1
A104: 009-000001468 | B104: 93.195 | C104: 103 | D104: =MOD(Table_AP_Chart_16_3[[#This Row],[number2]],1000) -> 103 | E104: =IF(Table_AP_Chart_16_3[[#This Row],[moduloCounter]]>0, " ",Table_AP_Chart_16_3[[#This Row],[number2]]) ->  | F104: 20690.4461 | G104: 45774.96453 | H104: 0.4520035419 | I104: 1
A105: 024-000000591 | B105: 92.919 | C105: 104 | D105: =MOD(Table_AP_Chart_16_3[[#This Row],[number2]],1000) -> 104 | E105: =IF(Table_AP_Chart_16_3[[#This Row],[moduloCounter]]>0, " ",Table_AP_Chart_16_3[[#This Row],[number2]]) ->  | F105: 20783.3651 | G105: 45774.96453 | H105: 0.4540334506 | I105: 1
A106: 024-000007591 | B106: 92.13 | C106: 105 | D106: =MOD(Table_AP_Chart_16_3[[#This Row],[number2]],1000) -> 105 | E106: =IF(Table_AP_Chart_16_3[[#This Row],[moduloCounter]]>0, " ",Table_AP_Chart_16_3[[#This Row],[number2]]) ->  | F106: 20875.4951 | G106: 45774.96453 | H106: 0.4560461228 | I106: 1
A107: 011-000002913 | B107: 91.355254 | C107: 106 | D107: =MOD(Table_AP_Chart_16_3[[#This Row],[number2]],1000) -> 106 | E107: =IF(Table_AP_Chart_16_3[[#This Row],[moduloCounter]]>0, " ",Table_AP_Chart_16_3[[#This Row],[number2]]) ->  | F107: 20966.85035 | G107: 45774.96453 | H107: 0.4580418699 | I107: 1
A108: 009-000339401 | B108: 91.187 | C108: 107 | D108: =MOD(Table_AP_Chart_16_3[[#This Row],[number2]],1000) -> 107 | E108: =IF(Table_AP_Chart_16_3[[#This Row],[moduloCounter]]>0, " ",Table_AP_Chart_16_3[[#This Row],[number2]]) ->  | F108: 21058.03735 | G108: 45774.96453 | H108: 0.4600339414 | I108: 1
A109: 011-000002906 | B109: 88.3167 | C109: 108 | D109: =MOD(Table_AP_Chart_16_3[[#This Row],[number2]],1000) -> 108 | E109: =IF(Table_AP_Chart_16_3[[#This Row],[moduloCounter]]>0, " ",Table_AP_Chart_16_3[[#This Row],[number2]]) ->  | F109: 21146.35405 | G109: 45774.96453 | H109: 0.4619633083 | I109: 1
A110: 009-000348468 | B110: 88.023 | C110: 109 | D110: =MOD(Table_AP_Chart_16_3[[#This Row],[number2]],1000) -> 109 | E110: =IF(Table_AP_Chart_16_3[[#This Row],[moduloCounter]]>0, " ",Table_AP_Chart_16_3[[#This Row],[number2]]) ->  | F110: 21234.37705 | G110: 45774.96453 | H110: 0.463886259 | I110: 1
A111: 014-000000049 | B111: 87.031744 | C111: 110 | D111: =MOD(Table_AP_Chart_16_3[[#This Row],[number2]],1000) -> 110 | E111: =IF(Table_AP_Chart_16_3[[#This Row],[moduloCounter]]>0, " ",Table_AP_Chart_16_3[[#This Row],[number2]]) ->  | F111: 21321.4088 | G111: 45774.96453 | H111: 0.4657875547 | I111: 1
A112: 011-000002165 | B112: 86.34901 | C112: 111 | D112: =MOD(Table_AP_Chart_16_3[[#This Row],[number2]],1000) -> 111 | E112: =IF(Table_AP_Chart_16_3[[#This Row],[moduloCounter]]>0, " ",Table_AP_Chart_16_3[[#This Row],[number2]]) ->  | F112: 21407.75781 | G112: 45774.96453 | H112: 0.4676739354 | I112: 1
A113: 005-000001425 | B113: 86.004 | C113: 112 | D113: =MOD(Table_AP_Chart_16_3[[#This Row],[number2]],1000) -> 112 | E113: =IF(Table_AP_Chart_16_3[[#This Row],[moduloCounter]]>0, " ",Table_AP_Chart_16_3[[#This Row],[number2]]) ->  | F113: 21493.76181 | G113: 45774.96453 | H113: 0.469552779 | I113: 1
A114: 026-000005020 | B114: 85.606 | C114: 113 | D114: =MOD(Table_AP_Chart_16_3[[#This Row],[number2]],1000) -> 113 | E114: =IF(Table_AP_Chart_16_3[[#This Row],[moduloCounter]]>0, " ",Table_AP_Chart_16_3[[#This Row],[number2]]) ->  | F114: 21579.36781 | G114: 45774.96453 | H114: 0.4714229279 | I114: 1
A115: 011-000003503 | B115: 84.943 | C115: 114 | D115: =MOD(Table_AP_Chart_16_3[[#This Row],[number2]],1000) -> 114 | E115: =IF(Table_AP_Chart_16_3[[#This Row],[moduloCounter]]>0, " ",Table_AP_Chart_16_3[[#This Row],[number2]]) ->  | F115: 21664.31081 | G115: 45774.96453 | H115: 0.4732785929 | I115: 1
A116: 006-000312900 | B116: 84.538 | C116: 115 | D116: =MOD(Table_AP_Chart_16_3[[#This Row],[number2]],1000) -> 115 | E116: =IF(Table_AP_Chart_16_3[[#This Row],[moduloCounter]]>0, " ",Table_AP_Chart_16_3[[#This Row],[number2]]) ->  | F116: 21748.84881 | G116: 45774.96453 | H116: 0.4751254103 | I116: 1
A117: 010-000002073 | B117: 84.317668 | C117: 116 | D117: =MOD(Table_AP_Chart_16_3[[#This Row],[number2]],1000) -> 116 | E117: =IF(Table_AP_Chart_16_3[[#This Row],[moduloCounter]]>0, " ",Table_AP_Chart_16_3[[#This Row],[number2]]) ->  | F117: 21833.16647 | G117: 45774.96453 | H117: 0.4769674143 | I117: 1
A118: 011-000000067 | B118: 82.672585 | C118: 117 | D118: =MOD(Table_AP_Chart_16_3[[#This Row],[number2]],1000) -> 117 | E118: =IF(Table_AP_Chart_16_3[[#This Row],[moduloCounter]]>0, " ",Table_AP_Chart_16_3[[#This Row],[number2]]) ->  | F118: 21915.83906 | G118: 45774.96453 | H118: 0.4787734798 | I118: 1
A119: 024-000003127 | B119: 81.902 | C119: 118 | D119: =MOD(Table_AP_Chart_16_3[[#This Row],[number2]],1000) -> 118 | E119: =IF(Table_AP_Chart_16_3[[#This Row],[moduloCounter]]>0, " ",Table_AP_Chart_16_3[[#This Row],[number2]]) ->  | F119: 21997.74106 | G119: 45774.96453 | H119: 0.4805627111 | I119: 1
A120: 015-000200136 | B120: 79.798722 | C120: 119 | D120: =MOD(Table_AP_Chart_16_3[[#This Row],[number2]],1000) -> 119 | E120: =IF(Table_AP_Chart_16_3[[#This Row],[moduloCounter]]>0, " ",Table_AP_Chart_16_3[[#This Row],[number2]]) ->  | F120: 22077.53978 | G120: 45774.96453 | H120: 0.4823059942 | I120: 1
A121: 016-000002542 | B121: 79.499 | C121: 120 | D121: =MOD(Table_AP_Chart_16_3[[#This Row],[number2]],1000) -> 120 | E121: =IF(Table_AP_Chart_16_3[[#This Row],[moduloCounter]]>0, " ",Table_AP_Chart_16_3[[#This Row],[number2]]) ->  | F121: 22157.03878 | G121: 45774.96453 | H121: 0.4840427296 | I121: 1
A122: 024-000005664 | B122: 78.473 | C122: 121 | D122: =MOD(Table_AP_Chart_16_3[[#This Row],[number2]],1000) -> 121 | E122: =IF(Table_AP_Chart_16_3[[#This Row],[moduloCounter]]>0, " ",Table_AP_Chart_16_3[[#This Row],[number2]]) ->  | F122: 22235.51178 | G122: 45774.96453 | H122: 0.485757051 | I122: 1
A123: 015-000000364 | B123: 78.075265 | C123: 122 | D123: =MOD(Table_AP_Chart_16_3[[#This Row],[number2]],1000) -> 122 | E123: =IF(Table_AP_Chart_16_3[[#This Row],[moduloCounter]]>0, " ",Table_AP_Chart_16_3[[#This Row],[number2]]) ->  | F123: 22313.58705 | G123: 45774.96453 | H123: 0.4874626834 | I123: 1
A124: 009-000316811 | B124: 77.654 | C124: 123 | D124: =MOD(Table_AP_Chart_16_3[[#This Row],[number2]],1000) -> 123 | E124: =IF(Table_AP_Chart_16_3[[#This Row],[moduloCounter]]>0, " ",Table_AP_Chart_16_3[[#This Row],[number2]]) ->  | F124: 22391.24105 | G124: 45774.96453 | H124: 0.4891591129 | I124: 1
A125: 019-000001778 | B125: 77.352 | C125: 124 | D125: =MOD(Table_AP_Chart_16_3[[#This Row],[number2]],1000) -> 124 | E125: =IF(Table_AP_Chart_16_3[[#This Row],[moduloCounter]]>0, " ",Table_AP_Chart_16_3[[#This Row],[number2]]) ->  | F125: 22468.59305 | G125: 45774.96453 | H125: 0.4908489449 | I125: 1
A126: 021-542850483 | B126: 76.911351 | C126: 125 | D126: =MOD(Table_AP_Chart_16_3[[#This Row],[number2]],1000) -> 125 | E126: =IF(Table_AP_Chart_16_3[[#This Row],[moduloCounter]]>0, " ",Table_AP_Chart_16_3[[#This Row],[number2]]) ->  | F126: 22545.5044 | G126: 45774.96453 | H126: 0.4925291505 | I126: 1
A127: 009-000381725 | B127: 76.688 | C127: 126 | D127: =MOD(Table_AP_Chart_16_3[[#This Row],[number2]],1000) -> 126 | E127: =IF(Table_AP_Chart_16_3[[#This Row],[moduloCounter]]>0, " ",Table_AP_Chart_16_3[[#This Row],[number2]]) ->  | F127: 22622.1924 | G127: 45774.96453 | H127: 0.4942044768 | I127: 1
A128: 006-000403700 | B128: 76.38 | C128: 127 | D128: =MOD(Table_AP_Chart_16_3[[#This Row],[number2]],1000) -> 127 | E128: =IF(Table_AP_Chart_16_3[[#This Row],[moduloCounter]]>0, " ",Table_AP_Chart_16_3[[#This Row],[number2]]) ->  | F128: 22698.5724 | G128: 45774.96453 | H128: 0.4958730745 | I128: 1
A129: 011-000002502 | B129: 75.75678 | C129: 128 | D129: =MOD(Table_AP_Chart_16_3[[#This Row],[number2]],1000) -> 128 | E129: =IF(Table_AP_Chart_16_3[[#This Row],[moduloCounter]]>0, " ",Table_AP_Chart_16_3[[#This Row],[number2]]) ->  | F129: 22774.32918 | G129: 45774.96453 | H129: 0.4975280573 | I129: 1
A130: 009-000352153 | B130: 75.024 | C130: 129 | D130: =MOD(Table_AP_Chart_16_3[[#This Row],[number2]],1000) -> 129 | E130: =IF(Table_AP_Chart_16_3[[#This Row],[moduloCounter]]>0, " ",Table_AP_Chart_16_3[[#This Row],[number2]]) ->  | F130: 22849.35318 | G130: 45774.96453 | H130: 0.4991670318 | I130: 1
A131: 029-555555301 | B131: 74.603 | C131: 130 | D131: =MOD(Table_AP_Chart_16_3[[#This Row],[number2]],1000) -> 130 | E131: =IF(Table_AP_Chart_16_3[[#This Row],[moduloCounter]]>0, " ",Table_AP_Chart_16_3[[#This Row],[number2]]) ->  | F131: 22923.95618 | G131: 45774.96453 | H131: 0.5007968091 | I131: 1
A132: 024-000005116 | B132: 74.141 | C132: 131 | D132: =MOD(Table_AP_Chart_16_3[[#This Row],[number2]],1000) -> 131 | E132: =IF(Table_AP_Chart_16_3[[#This Row],[moduloCounter]]>0, " ",Table_AP_Chart_16_3[[#This Row],[number2]]) ->  | F132: 22998.09718 | G132: 45774.96453 | H132: 0.5024164936 | I132: 1
A133: 026-000000005 | B133: 73.7 | C133: 132 | D133: =MOD(Table_AP_Chart_16_3[[#This Row],[number2]],1000) -> 132 | E133: =IF(Table_AP_Chart_16_3[[#This Row],[moduloCounter]]>0, " ",Table_AP_Chart_16_3[[#This Row],[number2]]) ->  | F133: 23071.79718 | G133: 45774.96453 | H133: 0.504026544 | I133: 1
A134: 024-000005220 | B134: 72.503 | C134: 133 | D134: =MOD(Table_AP_Chart_16_3[[#This Row],[number2]],1000) -> 133 | E134: =IF(Table_AP_Chart_16_3[[#This Row],[moduloCounter]]>0, " ",Table_AP_Chart_16_3[[#This Row],[number2]]) ->  | F134: 23144.30018 | G134: 45774.96453 | H134: 0.5056104448 | I134: 1
A135: 009-000348474 | B135: 72.276 | C135: 134 | D135: =MOD(Table_AP_Chart_16_3[[#This Row],[number2]],1000) -> 134 | E135: =IF(Table_AP_Chart_16_3[[#This Row],[moduloCounter]]>0, " ",Table_AP_Chart_16_3[[#This Row],[number2]]) ->  | F135: 23216.57618 | G135: 45774.96453 | H135: 0.5071893865 | I135: 1
A136: 015-000000056 | B136: 71.423782 | C136: 135 | D136: =MOD(Table_AP_Chart_16_3[[#This Row],[number2]],1000) -> 135 | E136: =IF(Table_AP_Chart_16_3[[#This Row],[moduloCounter]]>0, " ",Table_AP_Chart_16_3[[#This Row],[number2]]) ->  | F136: 23287.99996 | G136: 45774.96453 | H136: 0.5087497106 | I136: 1
A137: 021-620588994 | B137: 71.11 | C137: 136 | D137: =MOD(Table_AP_Chart_16_3[[#This Row],[number2]],1000) -> 136 | E137: =IF(Table_AP_Chart_16_3[[#This Row],[moduloCounter]]>0, " ",Table_AP_Chart_16_3[[#This Row],[number2]]) ->  | F137: 23359.10996 | G137: 45774.96453 | H137: 0.5103031798 | I137: 1
A138: 015-000200198 | B138: 69.687885 | C138: 137 | D138: =MOD(Table_AP_Chart_16_3[[#This Row],[number2]],1000) -> 137 | E138: =IF(Table_AP_Chart_16_3[[#This Row],[moduloCounter]]>0, " ",Table_AP_Chart_16_3[[#This Row],[number2]]) ->  | F138: 23428.79784 | G138: 45774.96453 | H138: 0.5118255816 | I138: 1
A139: 026-000001076 | B139: 68.2379 | C139: 138 | D139: =MOD(Table_AP_Chart_16_3[[#This Row],[number2]],1000) -> 138 | E139: =IF(Table_AP_Chart_16_3[[#This Row],[moduloCounter]]>0, " ",Table_AP_Chart_16_3[[#This Row],[number2]]) ->  | F139: 23497.03574 | G139: 45774.96453 | H139: 0.5133163069 | I139: 1
A140: 005-000002317 | B140: 67.88 | C140: 139 | D140: =MOD(Table_AP_Chart_16_3[[#This Row],[number2]],1000) -> 139 | E140: =IF(Table_AP_Chart_16_3[[#This Row],[moduloCounter]]>0, " ",Table_AP_Chart_16_3[[#This Row],[number2]]) ->  | F140: 23564.91574 | G140: 45774.96453 | H140: 0.5147992136 | I140: 1
A141: 021-097274776 | B141: 66.61 | C141: 140 | D141: =MOD(Table_AP_Chart_16_3[[#This Row],[number2]],1000) -> 140 | E141: =IF(Table_AP_Chart_16_3[[#This Row],[moduloCounter]]>0, " ",Table_AP_Chart_16_3[[#This Row],[number2]]) ->  | F141: 23631.52574 | G141: 45774.96453 | H141: 0.5162543758 | I141: 1
A142: 019-000001956 | B142: 66.475966 | C142: 141 | D142: =MOD(Table_AP_Chart_16_3[[#This Row],[number2]],1000) -> 141 | E142: =IF(Table_AP_Chart_16_3[[#This Row],[moduloCounter]]>0, " ",Table_AP_Chart_16_3[[#This Row],[number2]]) ->  | F142: 23698.00171 | G142: 45774.96453 | H142: 0.51770661 | I142: 1
A143: 006-000400700 | B143: 64.663 | C143: 142 | D143: =MOD(Table_AP_Chart_16_3[[#This Row],[number2]],1000) -> 142 | E143: =IF(Table_AP_Chart_16_3[[#This Row],[moduloCounter]]>0, " ",Table_AP_Chart_16_3[[#This Row],[number2]]) ->  | F143: 23762.66471 | G143: 45774.96453 | H143: 0.519119238 | I143: 1
A144: 011-000001126 | B144: 64.153236 | C144: 143 | D144: =MOD(Table_AP_Chart_16_3[[#This Row],[number2]],1000) -> 143 | E144: =IF(Table_AP_Chart_16_3[[#This Row],[moduloCounter]]>0, " ",Table_AP_Chart_16_3[[#This Row],[number2]]) ->  | F144: 23826.81795 | G144: 45774.96453 | H144: 0.5205207298 | I144: 1
A145: 014-000000045 | B145: 63.554313 | C145: 144 | D145: =MOD(Table_AP_Chart_16_3[[#This Row],[number2]],1000) -> 144 | E145: =IF(Table_AP_Chart_16_3[[#This Row],[moduloCounter]]>0, " ",Table_AP_Chart_16_3[[#This Row],[number2]]) ->  | F145: 23890.37226 | G145: 45774.96453 | H145: 0.5219091375 | I145: 1
A146: 006-000000062 | B146: 63.4 | C146: 145 | D146: =MOD(Table_AP_Chart_16_3[[#This Row],[number2]],1000) -> 145 | E146: =IF(Table_AP_Chart_16_3[[#This Row],[moduloCounter]]>0, " ",Table_AP_Chart_16_3[[#This Row],[number2]]) ->  | F146: 23953.77226 | G146: 45774.96453 | H146: 0.5232941741 | I146: 1
A147: 018-000003116 | B147: 63.391 | C147: 146 | D147: =MOD(Table_AP_Chart_16_3[[#This Row],[number2]],1000) -> 146 | E147: =IF(Table_AP_Chart_16_3[[#This Row],[moduloCounter]]>0, " ",Table_AP_Chart_16_3[[#This Row],[number2]]) ->  | F147: 24017.16326 | G147: 45774.96453 | H147: 0.524679014 | I147: 1
A148: 024-000006375 | B148: 62.619 | C148: 147 | D148: =MOD(Table_AP_Chart_16_3[[#This Row],[number2]],1000) -> 147 | E148: =IF(Table_AP_Chart_16_3[[#This Row],[moduloCounter]]>0, " ",Table_AP_Chart_16_3[[#This Row],[number2]]) ->  | F148: 24079.78226 | G148: 45774.96453 | H148: 0.5260469889 | I148: 1
A149: 006-000000051 | B149: 62.277827 | C149: 148 | D149: =MOD(Table_AP_Chart_16_3[[#This Row],[number2]],1000) -> 148 | E149: =IF(Table_AP_Chart_16_3[[#This Row],[moduloCounter]]>0, " ",Table_AP_Chart_16_3[[#This Row],[number2]]) ->  | F149: 24142.06009 | G149: 45774.96453 | H149: 0.5274075105 | I149: 1
A150: 009-000380398 | B150: 61.635 | C150: 149 | D150: =MOD(Table_AP_Chart_16_3[[#This Row],[number2]],1000) -> 149 | E150: =IF(Table_AP_Chart_16_3[[#This Row],[moduloCounter]]>0, " ",Table_AP_Chart_16_3[[#This Row],[number2]]) ->  | F150: 24203.69509 | G150: 45774.96453 | H150: 0.5287539888 | I150: 1
A151: 012-000000136 | B151: 61.471639 | C151: 150 | D151: =MOD(Table_AP_Chart_16_3[[#This Row],[number2]],1000) -> 150 | E151: =IF(Table_AP_Chart_16_3[[#This Row],[moduloCounter]]>0, " ",Table_AP_Chart_16_3[[#This Row],[number2]]) ->  | F151: 24265.16672 | G151: 45774.96453 | H151: 0.5300968984 | I151: 1
A152: 011-000002901 | B152: 60.428549 | C152: 151 | D152: =MOD(Table_AP_Chart_16_3[[#This Row],[number2]],1000) -> 151 | E152: =IF(Table_AP_Chart_16_3[[#This Row],[moduloCounter]]>0, " ",Table_AP_Chart_16_3[[#This Row],[number2]]) ->  | F152: 24325.59527 | G152: 45774.96453 | H152: 0.5314170207 | I152: 1
A153: 021-852368317 | B153: 60.228027 | C153: 152 | D153: =MOD(Table_AP_Chart_16_3[[#This Row],[number2]],1000) -> 152 | E153: =IF(Table_AP_Chart_16_3[[#This Row],[moduloCounter]]>0, " ",Table_AP_Chart_16_3[[#This Row],[number2]]) ->  | F153: 24385.8233 | G153: 45774.96453 | H153: 0.5327327623 | I153: 1
A154: 024-000003132 | B154: 59.824 | C154: 153 | D154: =MOD(Table_AP_Chart_16_3[[#This Row],[number2]],1000) -> 153 | E154: =IF(Table_AP_Chart_16_3[[#This Row],[moduloCounter]]>0, " ",Table_AP_Chart_16_3[[#This Row],[number2]]) ->  | F154: 24445.6473 | G154: 45774.96453 | H154: 0.5340396776 | I154: 1
A155: 010-000002258 | B155: 58.7291 | C155: 154 | D155: =MOD(Table_AP_Chart_16_3[[#This Row],[number2]],1000) -> 154 | E155: =IF(Table_AP_Chart_16_3[[#This Row],[moduloCounter]]>0, " ",Table_AP_Chart_16_3[[#This Row],[number2]]) ->  | F155: 24504.3764 | G155: 45774.96453 | H155: 0.5353226737 | I155: 1
A156: 006-000051000 | B156: 58.416 | C156: 155 | D156: =MOD(Table_AP_Chart_16_3[[#This Row],[number2]],1000) -> 155 | E156: =IF(Table_AP_Chart_16_3[[#This Row],[moduloCounter]]>0, " ",Table_AP_Chart_16_3[[#This Row],[number2]]) ->  | F156: 24562.7924 | G156: 45774.96453 | H156: 0.5365988298 | I156: 1
A157: 021-147277724 | B157: 58.160776 | C157: 156 | D157: =MOD(Table_AP_Chart_16_3[[#This Row],[number2]],1000) -> 156 | E157: =IF(Table_AP_Chart_16_3[[#This Row],[moduloCounter]]>0, " ",Table_AP_Chart_16_3[[#This Row],[number2]]) ->  | F157: 24620.95318 | G157: 45774.96453 | H157: 0.5378694102 | I157: 1
A158: 009-000348476 | B158: 57.569 | C158: 157 | D158: =MOD(Table_AP_Chart_16_3[[#This Row],[number2]],1000) -> 157 | E158: =IF(Table_AP_Chart_16_3[[#This Row],[moduloCounter]]>0, " ",Table_AP_Chart_16_3[[#This Row],[number2]]) ->  | F158: 24678.52218 | G158: 45774.96453 | H158: 0.5391270628 | I158: 1
A159: 021-782222331 | B159: 57.55823 | C159: 158 | D159: =MOD(Table_AP_Chart_16_3[[#This Row],[number2]],1000) -> 158 | E159: =IF(Table_AP_Chart_16_3[[#This Row],[moduloCounter]]>0, " ",Table_AP_Chart_16_3[[#This Row],[number2]]) ->  | F159: 24736.08041 | G159: 45774.96453 | H159: 0.54038448 | I159: 1
A160: 024-000003030 | B160: 57.52 | C160: 159 | D160: =MOD(Table_AP_Chart_16_3[[#This Row],[number2]],1000) -> 159 | E160: =IF(Table_AP_Chart_16_3[[#This Row],[moduloCounter]]>0, " ",Table_AP_Chart_16_3[[#This Row],[number2]]) ->  | F160: 24793.60041 | G160: 45774.96453 | H160: 0.5416410621 | I160: 1
A161: 014-000000026 | B161: 57.199411 | C161: 160 | D161: =MOD(Table_AP_Chart_16_3[[#This Row],[number2]],1000) -> 160 | E161: =IF(Table_AP_Chart_16_3[[#This Row],[moduloCounter]]>0, " ",Table_AP_Chart_16_3[[#This Row],[number2]]) ->  | F161: 24850.79982 | G161: 45774.96453 | H161: 0.5428906406 | I161: 1
A162: 015-000200133 | B162: 57.081268 | C162: 161 | D162: =MOD(Table_AP_Chart_16_3[[#This Row],[number2]],1000) -> 161 | E162: =IF(Table_AP_Chart_16_3[[#This Row],[moduloCounter]]>0, " ",Table_AP_Chart_16_3[[#This Row],[number2]]) ->  | F162: 24907.88109 | G162: 45774.96453 | H162: 0.5441376381 | I162: 1
A163: 024-000009538 | B163: 56.293 | C163: 162 | D163: =MOD(Table_AP_Chart_16_3[[#This Row],[number2]],1000) -> 162 | E163: =IF(Table_AP_Chart_16_3[[#This Row],[moduloCounter]]>0, " ",Table_AP_Chart_16_3[[#This Row],[number2]]) ->  | F163: 24964.17409 | G163: 45774.96453 | H163: 0.5453674151 | I163: 1
A164: 024-000005628 | B164: 56.291 | C164: 163 | D164: =MOD(Table_AP_Chart_16_3[[#This Row],[number2]],1000) -> 163 | E164: =IF(Table_AP_Chart_16_3[[#This Row],[moduloCounter]]>0, " ",Table_AP_Chart_16_3[[#This Row],[number2]]) ->  | F164: 25020.46509 | G164: 45774.96453 | H164: 0.5465971485 | I164: 1
A165: 006-000803700 | B165: 56.051892 | C165: 164 | D165: =MOD(Table_AP_Chart_16_3[[#This Row],[number2]],1000) -> 164 | E165: =IF(Table_AP_Chart_16_3[[#This Row],[moduloCounter]]>0, " ",Table_AP_Chart_16_3[[#This Row],[number2]]) ->  | F165: 25076.51698 | G165: 45774.96453 | H165: 0.5478216583 | I165: 1
A166: 009-000001474 | B166: 55.887 | C166: 165 | D166: =MOD(Table_AP_Chart_16_3[[#This Row],[number2]],1000) -> 165 | E166: =IF(Table_AP_Chart_16_3[[#This Row],[moduloCounter]]>0, " ",Table_AP_Chart_16_3[[#This Row],[number2]]) ->  | F166: 25132.40398 | G166: 45774.96453 | H166: 0.5490425658 | I166: 1
A167: 010-000000316 | B167: 55.54191 | C167: 166 | D167: =MOD(Table_AP_Chart_16_3[[#This Row],[number2]],1000) -> 166 | E167: =IF(Table_AP_Chart_16_3[[#This Row],[moduloCounter]]>0, " ",Table_AP_Chart_16_3[[#This Row],[number2]]) ->  | F167: 25187.94589 | G167: 45774.96453 | H167: 0.5502559345 | I167: 1
A168: 024-000001110 | B168: 55.481 | C168: 167 | D168: =MOD(Table_AP_Chart_16_3[[#This Row],[number2]],1000) -> 167 | E168: =IF(Table_AP_Chart_16_3[[#This Row],[moduloCounter]]>0, " ",Table_AP_Chart_16_3[[#This Row],[number2]]) ->  | F168: 25243.42689 | G168: 45774.96453 | H168: 0.5514679726 | I168: 1
A169: 019-000001905 | B169: 55.27686 | C169: 168 | D169: =MOD(Table_AP_Chart_16_3[[#This Row],[number2]],1000) -> 168 | E169: =IF(Table_AP_Chart_16_3[[#This Row],[moduloCounter]]>0, " ",Table_AP_Chart_16_3[[#This Row],[number2]]) ->  | F169: 25298.70375 | G169: 45774.96453 | H169: 0.552675551 | I169: 1
A170: 024-000003099 | B170: 54.099 | C170: 169 | D170: =MOD(Table_AP_Chart_16_3[[#This Row],[number2]],1000) -> 169 | E170: =IF(Table_AP_Chart_16_3[[#This Row],[moduloCounter]]>0, " ",Table_AP_Chart_16_3[[#This Row],[number2]]) ->  | F170: 25352.80275 | G170: 45774.96453 | H170: 0.553857398 | I170: 1
A171: 019-000001893 | B171: 54.051 | C171: 170 | D171: =MOD(Table_AP_Chart_16_3[[#This Row],[number2]],1000) -> 170 | E171: =IF(Table_AP_Chart_16_3[[#This Row],[moduloCounter]]>0, " ",Table_AP_Chart_16_3[[#This Row],[number2]]) ->  | F171: 25406.85375 | G171: 45774.96453 | H171: 0.5550381962 | I171: 1
A172: 014-000000012 | B172: 53.733 | C172: 171 | D172: =MOD(Table_AP_Chart_16_3[[#This Row],[number2]],1000) -> 171 | E172: =IF(Table_AP_Chart_16_3[[#This Row],[moduloCounter]]>0, " ",Table_AP_Chart_16_3[[#This Row],[number2]]) ->  | F172: 25460.58675 | G172: 45774.96453 | H172: 0.5562120475 | I172: 1
A173: 021-432721618 | B173: 53.4 | C173: 172 | D173: =MOD(Table_AP_Chart_16_3[[#This Row],[number2]],1000) -> 172 | E173: =IF(Table_AP_Chart_16_3[[#This Row],[moduloCounter]]>0, " ",Table_AP_Chart_16_3[[#This Row],[number2]]) ->  | F173: 25513.98675 | G173: 45774.96453 | H173: 0.5573786241 | I173: 1
A174: 015-000000066 | B174: 53.219996 | C174: 173 | D174: =MOD(Table_AP_Chart_16_3[[#This Row],[number2]],1000) -> 173 | E174: =IF(Table_AP_Chart_16_3[[#This Row],[moduloCounter]]>0, " ",Table_AP_Chart_16_3[[#This Row],[number2]]) ->  | F174: 25567.20674 | G174: 45774.96453 | H174: 0.5585412682 | I174: 1
A175: 021-391613792 | B175: 52.484158 | C175: 174 | D175: =MOD(Table_AP_Chart_16_3[[#This Row],[number2]],1000) -> 174 | E175: =IF(Table_AP_Chart_16_3[[#This Row],[moduloCounter]]>0, " ",Table_AP_Chart_16_3[[#This Row],[number2]]) ->  | F175: 25619.6909 | G175: 45774.96453 | H175: 0.5596878373 | I175: 1
A176: 024-000000594 | B176: 51.906 | C176: 175 | D176: =MOD(Table_AP_Chart_16_3[[#This Row],[number2]],1000) -> 175 | E176: =IF(Table_AP_Chart_16_3[[#This Row],[moduloCounter]]>0, " ",Table_AP_Chart_16_3[[#This Row],[number2]]) ->  | F176: 25671.5969 | G176: 45774.96453 | H176: 0.5608217759 | I176: 1
A177: 015-000000341 | B177: 51.4 | C177: 176 | D177: =MOD(Table_AP_Chart_16_3[[#This Row],[number2]],1000) -> 176 | E177: =IF(Table_AP_Chart_16_3[[#This Row],[moduloCounter]]>0, " ",Table_AP_Chart_16_3[[#This Row],[number2]]) ->  | F177: 25722.9969 | G177: 45774.96453 | H177: 0.5619446604 | I177: 1
A178: 025-000000073 | B178: 51.117 | C178: 177 | D178: =MOD(Table_AP_Chart_16_3[[#This Row],[number2]],1000) -> 177 | E178: =IF(Table_AP_Chart_16_3[[#This Row],[moduloCounter]]>0, " ",Table_AP_Chart_16_3[[#This Row],[number2]]) ->  | F178: 25774.1139 | G178: 45774.96453 | H178: 0.5630613626 | I178: 1
A179: 010-000002163 | B179: 50.695496 | C179: 178 | D179: =MOD(Table_AP_Chart_16_3[[#This Row],[number2]],1000) -> 178 | E179: =IF(Table_AP_Chart_16_3[[#This Row],[moduloCounter]]>0, " ",Table_AP_Chart_16_3[[#This Row],[number2]]) ->  | F179: 25824.8094 | G179: 45774.96453 | H179: 0.5641688565 | I179: 1
A180: 019-000001877 | B180: 50.612779 | C180: 179 | D180: =MOD(Table_AP_Chart_16_3[[#This Row],[number2]],1000) -> 179 | E180: =IF(Table_AP_Chart_16_3[[#This Row],[moduloCounter]]>0, " ",Table_AP_Chart_16_3[[#This Row],[number2]]) ->  | F180: 25875.42218 | G180: 45774.96453 | H180: 0.5652745434 | I180: 1
A181: 015-000200053 | B181: 50.407783 | C181: 180 | D181: =MOD(Table_AP_Chart_16_3[[#This Row],[number2]],1000) -> 180 | E181: =IF(Table_AP_Chart_16_3[[#This Row],[moduloCounter]]>0, " ",Table_AP_Chart_16_3[[#This Row],[number2]]) ->  | F181: 25925.82996 | G181: 45774.96453 | H181: 0.566375752 | I181: 1
A182: 024-000009540 | B182: 50.169 | C182: 181 | D182: =MOD(Table_AP_Chart_16_3[[#This Row],[number2]],1000) -> 181 | E182: =IF(Table_AP_Chart_16_3[[#This Row],[moduloCounter]]>0, " ",Table_AP_Chart_16_3[[#This Row],[number2]]) ->  | F182: 25975.99896 | G182: 45774.96453 | H182: 0.5674717441 | I182: 1
A183: 024-000005072 | B183: 50.01 | C183: 182 | D183: =MOD(Table_AP_Chart_16_3[[#This Row],[number2]],1000) -> 182 | E183: =IF(Table_AP_Chart_16_3[[#This Row],[moduloCounter]]>0, " ",Table_AP_Chart_16_3[[#This Row],[number2]]) ->  | F183: 26026.00896 | G183: 45774.96453 | H183: 0.5685642627 | I183: 1
A184: 015-000200132 | B184: 49.430321 | C184: 183 | D184: =MOD(Table_AP_Chart_16_3[[#This Row],[number2]],1000) -> 183 | E184: =IF(Table_AP_Chart_16_3[[#This Row],[moduloCounter]]>0, " ",Table_AP_Chart_16_3[[#This Row],[number2]]) ->  | F184: 26075.43928 | G184: 45774.96453 | H184: 0.5696441176 | I184: 1
A185: 021-613828465 | B185: 49.250797 | C185: 184 | D185: =MOD(Table_AP_Chart_16_3[[#This Row],[number2]],1000) -> 184 | E185: =IF(Table_AP_Chart_16_3[[#This Row],[moduloCounter]]>0, " ",Table_AP_Chart_16_3[[#This Row],[number2]]) ->  | F185: 26124.69008 | G185: 45774.96453 | H185: 0.5707200507 | I185: 1
A186: 018-000000143 | B186: 49.046 | C186: 185 | D186: =MOD(Table_AP_Chart_16_3[[#This Row],[number2]],1000) -> 185 | E186: =IF(Table_AP_Chart_16_3[[#This Row],[moduloCounter]]>0, " ",Table_AP_Chart_16_3[[#This Row],[number2]]) ->  | F186: 26173.73608 | G186: 45774.96453 | H186: 0.5717915097 | I186: 1
A187: 026-000001020 | B187: 48.472 | C187: 186 | D187: =MOD(Table_AP_Chart_16_3[[#This Row],[number2]],1000) -> 186 | E187: =IF(Table_AP_Chart_16_3[[#This Row],[moduloCounter]]>0, " ",Table_AP_Chart_16_3[[#This Row],[number2]]) ->  | F187: 26222.20808 | G187: 45774.96453 | H187: 0.5728504292 | I187: 1
A188: 024-000000607 | B188: 48.317 | C188: 187 | D188: =MOD(Table_AP_Chart_16_3[[#This Row],[number2]],1000) -> 187 | E188: =IF(Table_AP_Chart_16_3[[#This Row],[moduloCounter]]>0, " ",Table_AP_Chart_16_3[[#This Row],[number2]]) ->  | F188: 26270.52508 | G188: 45774.96453 | H188: 0.5739059625 | I188: 1
A189: 023-000004180 | B189: 48.259264 | C189: 188 | D189: =MOD(Table_AP_Chart_16_3[[#This Row],[number2]],1000) -> 188 | E189: =IF(Table_AP_Chart_16_3[[#This Row],[moduloCounter]]>0, " ",Table_AP_Chart_16_3[[#This Row],[number2]]) ->  | F189: 26318.78434 | G189: 45774.96453 | H189: 0.5749602345 | I189: 1
A190: 009-000347440 | B190: 48.251 | C190: 189 | D190: =MOD(Table_AP_Chart_16_3[[#This Row],[number2]],1000) -> 189 | E190: =IF(Table_AP_Chart_16_3[[#This Row],[moduloCounter]]>0, " ",Table_AP_Chart_16_3[[#This Row],[number2]]) ->  | F190: 26367.03534 | G190: 45774.96453 | H190: 0.576014326 | I190: 1
A191: 024-000004052 | B191: 47.422 | C191: 190 | D191: =MOD(Table_AP_Chart_16_3[[#This Row],[number2]],1000) -> 190 | E191: =IF(Table_AP_Chart_16_3[[#This Row],[moduloCounter]]>0, " ",Table_AP_Chart_16_3[[#This Row],[number2]]) ->  | F191: 26414.45734 | G191: 45774.96453 | H191: 0.5770503071 | I191: 1
A192: 009-000348466 | B192: 47.382 | C192: 191 | D192: =MOD(Table_AP_Chart_16_3[[#This Row],[number2]],1000) -> 191 | E192: =IF(Table_AP_Chart_16_3[[#This Row],[moduloCounter]]>0, " ",Table_AP_Chart_16_3[[#This Row],[number2]]) ->  | F192: 26461.83934 | G192: 45774.96453 | H192: 0.5780854144 | I192: 1
A193: 026-000001124 | B193: 47.201 | C193: 192 | D193: =MOD(Table_AP_Chart_16_3[[#This Row],[number2]],1000) -> 192 | E193: =IF(Table_AP_Chart_16_3[[#This Row],[moduloCounter]]>0, " ",Table_AP_Chart_16_3[[#This Row],[number2]]) ->  | F193: 26509.04034 | G193: 45774.96453 | H193: 0.5791165676 | I193: 1
A194: 024-000007128 | B194: 46.986 | C194: 193 | D194: =MOD(Table_AP_Chart_16_3[[#This Row],[number2]],1000) -> 193 | E194: =IF(Table_AP_Chart_16_3[[#This Row],[moduloCounter]]>0, " ",Table_AP_Chart_16_3[[#This Row],[number2]]) ->  | F194: 26556.02634 | G194: 45774.96453 | H194: 0.5801430239 | I194: 1
A195: 019-000001906 | B195: 46.809953 | C195: 194 | D195: =MOD(Table_AP_Chart_16_3[[#This Row],[number2]],1000) -> 194 | E195: =IF(Table_AP_Chart_16_3[[#This Row],[moduloCounter]]>0, " ",Table_AP_Chart_16_3[[#This Row],[number2]]) ->  | F195: 26602.83629 | G195: 45774.96453 | H195: 0.5811656342 | I195: 1
A196: 021-129509274 | B196: 46.462702 | C196: 195 | D196: =MOD(Table_AP_Chart_16_3[[#This Row],[number2]],1000) -> 195 | E196: =IF(Table_AP_Chart_16_3[[#This Row],[moduloCounter]]>0, " ",Table_AP_Chart_16_3[[#This Row],[number2]]) ->  | F196: 26649.299 | G196: 45774.96453 | H196: 0.5821806585 | I196: 1
A197: 024-000007127 | B197: 46.292 | C197: 196 | D197: =MOD(Table_AP_Chart_16_3[[#This Row],[number2]],1000) -> 196 | E197: =IF(Table_AP_Chart_16_3[[#This Row],[moduloCounter]]>0, " ",Table_AP_Chart_16_3[[#This Row],[number2]]) ->  | F197: 26695.591 | G197: 45774.96453 | H197: 0.5831919537 | I197: 1
A198: 011-000002916 | B198: 46.184 | C198: 197 | D198: =MOD(Table_AP_Chart_16_3[[#This Row],[number2]],1000) -> 197 | E198: =IF(Table_AP_Chart_16_3[[#This Row],[moduloCounter]]>0, " ",Table_AP_Chart_16_3[[#This Row],[number2]]) ->  | F198: 26741.775 | G198: 45774.96453 | H198: 0.5842008895 | I198: 1
A199: 011-000003212 | B199: 45.988467 | C199: 198 | D199: =MOD(Table_AP_Chart_16_3[[#This Row],[number2]],1000) -> 198 | E199: =IF(Table_AP_Chart_16_3[[#This Row],[moduloCounter]]>0, " ",Table_AP_Chart_16_3[[#This Row],[number2]]) ->  | F199: 26787.76346 | G199: 45774.96453 | H199: 0.5852055537 | I199: 1
A200: 024-000005363 | B200: 45.722 | C200: 199 | D200: =MOD(Table_AP_Chart_16_3[[#This Row],[number2]],1000) -> 199 | E200: =IF(Table_AP_Chart_16_3[[#This Row],[moduloCounter]]>0, " ",Table_AP_Chart_16_3[[#This Row],[number2]]) ->  | F200: 26833.48546 | G200: 45774.96453 | H200: 0.5862043966 | I200: 1
... 4017 more rows

Sheet Chart 16-6 (hidden)
A1: partOfITPortfolio | B1: totalSpending2018 | C1: allSpending2018 | D1: pct
A2: 03 - IT Infrastructure, IT Security, and IT Management | B2: 22215.17642 | C2: 86337.54354 | D2: 0.417894
A3: 04 - Grants and Other Transferred Funding | B3: 9020.942082 | C3: 86337.54354 | D3: 0.169694
A4: 01 - Mission Delivery | B4: 17844.94014 | C4: 86337.54354 | D4: 0.335685
A5: 02 - Administrative Services and Support Systems | B5: 4078.692901 | C5: 86337.54354 | D5: 0.076725

Sheet Table 16-1 Back (hidden)
A1: Category | B1: 2017 | C1: 2018 | D1: 2019
A2: Non-Defense | B2: 316.322363 | C2: 390.287854 | D2: 338.33621
A3: Non-Defense | B3: 105.756557 | C3: 101.563967 | D3: 89.500266
A4: Non-Defense | B4: 3401.020708 | C4: 3373.510102 | D4: 3306.070151
A5: Non-Defense | B5: 111.116237 | C5: 106.412923 | D5: 119.849787
A6: Non-Defense | B6: 2232.150417 | C6: 2286.428888 | D6: 2429.43684
A7: Non-Defense | B7: 153.138216 | C7: 208.430256 | D7: 153.641008
A8: Non-Defense | B8: 1132.941223 | C8: 1178.56071 | D8: 1194.70524
A9: Non-Defense | B9: 4454.866 | C9: 4395.39 | D9: 4281.248
A10: Non-Defense | B10: 2107.161 | C10: 2116.05 | D10: 2034.449
A11: Non-Defense | B11: 4280.782339 | C11: 4565.730662 | D11: 4649.378073
A12: Non-Defense | B12: 147.906 | C12: 147.976 | D12: 169.085
A13: Non-Defense | B13: 122.057 | C13: 112.8 | D13: 105.024
A14: Non-Defense | B14: 2714.443622 | C14: 2788.145103 | D14: 2877.950225
A15: Non-Defense | B15: 668.574111 | C15: 686.694837 | D15: 741.164317
A16: Non-Defense | B16: 6539.465 | C16: 6843.293 | D16: 6844.257
A17: Non-Defense | B17: 147.422049 | C17: 138.749386 | D17: 146.689665
A18: Non-Defense | B18: 437.539 | C18: 470.6775 | D18: 467.985267
A19: Non-Defense | B19: 1818.862 | C19: 1618.405 | D19: 1671.333
A20: Non-Defense | B20: 5870.404 | C20: 5698.911 | D20: 5471.684
A21: Non-Defense | B21: 399.579 | C21: 401.402 | D21: 341.676
A22: Non-Defense | B22: 1571.291336 | C22: 1684.734849 | D22: 1645.448479
A23: Non-Defense | B23: 2148.015066 | C23: 2217.088017 | D23: 2330.897656
A24: Non-Defense | B24: 721.552547 | C24: 715.23486 | D24: 689.724748
A25: Non-Defense | B25: 2572.062221 | C25: 2627.07486 | D25: 3008.045543
A26: Non-Defense | B26: 749.479917 | C26: 680.583853 | D26: 667.385057

Sheet Table 16-2 Back (hidden)
A1: agencyName | B1: 2019 | C1: pct
A2: Department of Homeland Security | B2: 6844.257 | C2: 0.1495196571
A3: Department of Health and Human Services | B3: 5471.684 | C3: 0.1195344236
A4: Department of the Treasury | B4: 4649.378073 | C4: 0.1015703261
A5: Department of Veterans Affairs | B5: 4281.248 | C5: 0.09352815548
A6: Department of Transportation | B6: 3306.070151 | C6: 0.07222441753
A7: Department of Commerce | B7: 3008.045543 | C7: 0.06571377114
A8: Department of Justice | B8: 2877.950225 | C8: 0.06287170846
A9: Department of State | B9: 2429.43684 | C9: 0.05307348383
A10: Department of Energy | B10: 2330.897656 | C10: 0.05092079655
A11: Department of Agriculture | B11: 2034.449 | C11: 0.0444445784
A12: Social Security Administration | B12: 1671.333 | C12: 0.03651194528
A13: National Aeronautics and Space Administration | B13: 1645.448479 | C13: 0.03594647196
A14: Department of the Interior | B14: 1194.70524 | C14: 0.02609953393
A15: Department of Education | B15: 741.164317 | C15: 0.01619147769
A16: Department of Labor | B16: 689.724748 | C16: 0.01506772873
A17: General Services Administration | B17: 667.385057 | C17: 0.01457969578
A18: U.S. Army Corps of Engineers | B18: 467.985267 | C18: 0.01022360742
A19: Environmental Protection Agency | B19: 341.676 | C19: 0.007464254828
A20: Department of Housing and Urban Development | B20: 338.33621 | C20: 0.007391293766
A21: Nuclear Regulatory Commission | B21: 169.085 | C21: 0.003693831371
A22: U.S. Agency for International Development | B22: 153.641008 | C22: 0.00335644188
A23: Office of Personnel Management | B23: 146.689665 | C23: 0.003204582822
A24: National Archives and Records Administration | B24: 119.849787 | C24: 0.002618238774
A25: National Science Foundation | B25: 105.024 | C25: 0.00229435459
A26: Small Business Administration | B26: 89.500266 | C26: 0.001955223055

Sheet Queries (hidden)
A1: Table 16-1 | M1: Chart 16-2 | W1: Chart 16-4
A2: SELECT CASE WHEN agencyName = 'Department of Defense' | M2: SELECT partOfITPortfolio, | W2: SELECT cioEvaluationColor,
A3: THEN 'Department of Defense' | M3: [2019], | W3: COUNT(1) as cioColorCount,
D4: ELSE 'Non-Defense' | M4: [2019]/totalSpend2019 as pct | X4: (SELECT COUNT(cioEvaluationColor) FROM etl_itdb_business_case_xml) as totalCIOCount
C5: END AS 'Category', | M5: FROM | W5: FROM etl_itdb_business_case_xml
A6: totalITSpendingFY2017 as '2017', | M6: ( | W6: GROUP BY cioEvaluationColor
B7: totalITSpendingFY2018 as '2018',
B8: totalITSpendingFY2019 as '2019' | M8: SELECT partOfITPortfolio,
A9: FROM itdash19.dbo.etl_it_portfolio | M9: sum(totalITSpendingFY2019) as [2019],
N10: (SELECT SUM(totalITSpendingFY2019) FROM itdash19.dbo.etl_it_Portfolio) as totalSpend2019 | W10: Chart 16-5
A11: Table 16-2 | M11: FROM itdash19.dbo.etl_it_portfolio | W11: SELECT
A12: SELECT agencyName, | M12: GROUP BY partOfITPortfolio | W12: SUM([DME_BY_AgencyFunding]) as DME
A13: [2019], | M13: ) a | W13: ,SUM([OM_BY_AgencyFunding]) as OM
A14: [2019]/totalSpend2019 as pct | W14: ,SUM([Provisioned_DME_BY_AgencyFunding]) provisionedDME
A15: FROM | W15: ,SUM([Provisioned_OM_BY_AgencyFunding]) as provisionedOM
A16: (SELECT agencyName, | M16: Chart 16-3 | W16: ,SUM([totalITSpendingFY2019]) totalSpending2019
B17: SUM(totalITSpendingFY2019)as '2019', | W17: ,SUM([totalCloudSaaSCostCY]) as cloudSaaS2018
B18: (SELECT SUM(totalITSpendingFY2019) FROM itdash19.dbo.etl_it_Portfolio) as totalSpend2019 | W18: ,SUM([totalOtherManagedServicesCostCY]) as managedServicesCY
A19: FROM itdash19.dbo.etl_it_portfolio | W19: ,SUM([totalCloudPaaSIaaSCostCY]) as cloudPaasIaaSCostCY
A20: GROUP BY agencyName) a | W20: FROM [itdash19].[dbo].[ETL_IT_portfolio]
A22: Chart 16-1
